Cogmind - Beta 14 @@@ ROGUE MODE // 2024.09.30 @ 17:55:39 Player: N.W.L Result: Escaped! Performance ------------- Evolutions (9) 4500 Regions Visited (32) 6400 Robots Destroyed (545) 2725 Value Destroyed (37838) 37838 Prototype IDs (94) 1880 Alien Tech Used (10) 2000 Bonus (31235) 31235 TOTAL SCORE: 86578 Bonus ------- Triggered High Security 500 High Alert Combat Kills 11264 Follower Combat Kills 3496 Entered Garrisons 1600 Used RIF Installer 4000 Network Hubs Disabled 200 Aligned with FarCom 300 Built Enhanced Grunts 300 Met R17 at Cetus 500 Found Hidden Lab 3000 Met R17 at Research 2000 Scanned by Researcher 1000 Pursued by Intercept 500 Met Sigix 2000 Win 3000 Friendly Fire -2425 Cogmind --------- Core Integrity 1386/1600 Matter 216/425 Energy 929/950 System Corruption 5% Temperature Cool (12) Movement Treading (166) Location To Epsilon Eridani Parts ------- > --- POWER (2) -------- Vortex Chain Reactor > --- PROPULSION (6) --- Armored Heavy Treads Armored Heavy Treads (fused) High-density Centrium Heavy Treads (fused) > --- UTILITY (14) ----- Experimental Coolant Injector Terrain Scanner SHELL Armor Antimissile System Relay Coupler [Swarmer] (32) Relay Coupler [Behemoth] (8) Microwarp Drive > --- WEAPON (4) ------- Heavy Quantum Rifle Enhanced Nova Cannon > --- INVENTORY (5) ---- (None) Peak State ------------ > --- POWER ------------ Vortex Chain Reactor > --- PROPULSION ------- Armored Heavy Treads Biometal Heavy Treads Experimental Biometal Heavy Treads > --- UTILITY ---------- Experimental Coolant Injector Humpback SHELL Armor Thermal Barrier Experimental Force Field Relay Coupler [Swarmer] Relay Coupler [Behemoth] Microwarp Drive > --- WEAPON ----------- Heavy Quantum Rifle Enhanced Nova Cannon Enhanced Nova Cannon Warp Cannon > --- INVENTORY -------- Armored Heavy Treads High-density Centrium Heavy Treads Coolant Network Advanced Matter Compressor Advanced Terrain Scan Processor Advanced Kinecellerator Advanced Transmission Jammer Centrium Medium Armor Plating Antimissile System Long-range Tractor Beam Dimensional Node Initializer High-powered Transdimensional Reconstructor Core Reset Matrix Subatomic Replicator Enhanced Gamma Rifle Helical Railgun Multirail Hypercooled Linear Accelerator Hypercooled Linear Accelerator Hypercooled Linear Accelerator Hypercooled Linear Accelerator Hypercooled Linear Accelerator Fusion Bomb Launcher Advanced Remote Datajack Advanced Remote Datajack Core Stripper Ionic Axe Sigix Containment Pod [Rating: 245] Favorites ----------- Power Quantum Reactor Engine Ion Engine Power Core Light Nuclear Core Reactor Quantum Reactor Propulsion Centrium Heavy Treads Treads Centrium Heavy Treads Leg Myomer Leg Wheel Wheel Utility Cargo Storage Unit Device Advanced Heat Sink Storage Cargo Storage Unit Processor Experimental Optical Array Hackware Relay Coupler [Grunt] Protection Heavy Regenerative Plating Artifact Microwarp Drive Weapon Plasma Rifle Energy Gun Plasma Rifle Energy Cannon Enhanced Nova Cannon Ballistic Gun Coil Gun Ballistic Cannon Hypercooled Linear Accelerator Launcher Fusion Bomb Launcher Special Weapon Improved Remote Datajack Impact Weapon Great Maul Slashing Weapon Ionic Axe Special Melee Weapon Datajack Build | -11 -10 -10 -10 -9 -8 -8 -8 -8 -7 -7 -7 -7 -6 -6 -6 -6 -6 -6 -5 -5 -4 -4 -4 -4 -4 -3 -3 -3 -2 -2 -2 -1 ------- Run | Yrd Mat Min Exi Min Mat Gar Mat Gar Fac Gar Fac Gar Fac Ext Cet Arc Hub Gar Fac Gar Fac Gar Fac Arm Lab Res Gar Qua Res Tes Sec Acc Slots Evolved 18 | . . . . . 4 . . . 2 . . . 2 . . . . . 2 . 2 . . . . 2 . . 2 . . 2 Power 1 | . . . . . . . . . . . . . . . . . . . . . . . . . . . . . 1 . . . Propulsion 4 | . . . . . 1 . . . 1 . . . 1 . . . . . 1 . . . . . . . . . . . . . Utility 12 | . . . . . 2 . . . 1 . . . 1 . . . . . 1 . 2 . . . . 2 . . 1 . . 2 Weapon 1 | . . . . . 1 . . . . . . . . . . . . . . . . . . . . . . . . . . . Parts Attached 907 | 1 14 1 4 6 41 43 11 36 19 56 9 56 10 56 14 10 8 43 65 49 23 27 18 39 9 11 27 79 33 46 40 3 Power 40 | . . . . . 3 4 1 1 . 4 . 2 . 2 2 . . 1 . 1 . 3 . . . 1 . 6 2 6 1 . Engine 7 | . . . . . 3 . 1 1 . . . 1 . . . . . . . . . 1 . . . . . . . . . . Core 9 | . . . . . . 4 . . . 3 . . . 1 . . . . . . . 1 . . . . . . . . . . Reactor 24 | . . . . . . . . . . 1 . 1 . 1 2 . . 1 . 1 . 1 . . . 1 . 6 2 6 1 . Propulsion 95 | . 5 . 2 . 6 11 1 5 3 11 . 14 1 8 2 . . 1 3 2 . 2 . 6 1 . . 5 1 2 1 2 Treads 66 | . 5 . . . 1 10 1 4 1 1 . 8 1 7 2 . . 1 3 2 . 2 . 5 1 . . 5 1 2 1 2 Leg 23 | . . . 2 . 5 1 . 1 . 7 . 6 . . . . . . . . . . . 1 . . . . . . . . Wheel 6 | . . . . . . . . . 2 3 . . . 1 . . . . . . . . . . . . . . . . . . Hover . | . . . . . . . . . . . . . . . . . . . . . . . . . . . . . . . . . Flight . | . . . . . . . . . . . . . . . . . . . . . . . . . . . . . . . . . Utility 327 | 1 5 1 1 1 9 10 1 16 7 20 3 19 4 15 3 5 3 16 14 12 14 8 11 13 4 4 8 39 17 22 20 1 Device 183 | 1 1 1 . . 6 6 . 4 5 14 . 12 . 9 1 2 1 10 4 6 7 3 5 11 2 3 4 27 13 13 11 1 Storage 16 | . 2 . 1 . 1 . . 1 . 2 . 1 . 1 . 1 . 2 . . . . . . . . . 2 1 1 . . Processor 11 | . . . . . . . . . . . . 1 . 1 1 . . 1 . . 2 . . 1 . . . 3 . 1 . . Hackware 73 | . . . . . . . . 8 2 3 3 3 4 1 . 1 2 3 7 6 5 4 6 1 1 1 4 4 1 3 . . Protection 39 | . 2 . . 1 2 4 1 3 . 1 . 2 . 3 1 1 . . 3 . . 1 . . 1 . . 2 2 4 5 . Artifact 5 | . . . . . . . . . . . . . . . . . . . . . . . . . . . . 1 . . 4 . Weapon 445 | . 4 . 1 5 23 18 8 14 9 21 6 21 5 31 7 5 5 25 48 34 9 14 7 20 4 6 19 29 13 16 18 . Energy Gun 112 | . . . . 1 8 7 1 2 1 7 . 5 2 15 4 1 4 13 22 8 . 1 . . 1 1 2 3 . 2 1 . Energy Cannon 113 | . 1 . . 2 6 7 3 5 2 3 2 2 1 4 . . . 4 8 8 1 4 3 6 2 1 9 10 5 6 8 . Ballistic Gun 63 | . 2 . . . . . . 1 3 5 2 9 . 4 3 3 . . 2 9 4 3 . 9 . 1 1 2 . . . . Ballistic Cannon 44 | . . . . . . . 2 3 1 . . 1 . 1 . . . 1 . 1 1 . 1 1 . . 2 12 6 7 4 . Launcher 22 | . . . . 1 3 3 . . . . . 1 . . . . . 1 . 2 . 1 . 2 . 1 3 . . . 4 . Special Weapon 62 | . 1 . . 1 . . 1 2 1 5 1 2 1 6 . 1 1 2 12 5 3 4 3 2 . 2 2 1 2 1 . . Impact Weapon 17 | . . . . . 3 1 1 1 1 1 1 1 1 1 . . . 4 . . . . . . . . . 1 . . . . Slashing Weapon 11 | . . . . . 3 . . . . . . . . . . . . . 4 1 . 1 . . 1 . . . . . 1 . Piercing Weapon . | . . . . . . . . . . . . . . . . . . . . . . . . . . . . . . . . . Special Melee Weapon 1 | . . . 1 . . . . . . . . . . . . . . . . . . . . . . . . . . . . . Unidentified Prototypes 45 | . . . . . 3 . . . 1 . . 1 . . 3 1 . 1 1 . 2 . . . 5 1 . 11 1 8 6 . Corrupted Parts 7 | . . . . . . . . . . . . . . . 1 1 . 1 . . . . . . . . . 4 . . . . System Corruption 30 | . . . . . . . . . . . . . . . 4 3 . 3 . . . . . . . . . 20 . . . . Parts Lost 83 | . 1 . . 1 . 7 3 8 3 8 . 4 . 4 2 . 1 . 1 5 1 1 1 4 . . 3 2 2 3 18 . Power 9 | . . . . . . 1 . . 1 2 . 1 . . . . . . . 1 . 1 . . . . . 1 . . 1 . Propulsion 26 | . . . . . . 4 1 4 1 5 . . . 4 . . . . . 2 . . . 3 . . . . . . 2 . Utility 21 | . . . . 1 . 1 . 2 . 1 . 3 . . . . 1 . . 1 1 . . . . . 1 . 1 2 6 . Weapon 26 | . 1 . . . . 1 2 2 1 . . . . . 2 . . . 1 1 . . 1 1 . . 2 1 1 1 8 . Highest Loss Streak 15 | . 1 . . 1 . 3 3 4 2 3 . 2 . 1 2 . 1 . 1 4 1 1 1 2 . . 1 1 2 2 15 . To Critical Strikes 3 | . . . . . . . . . . . . . . . . . . . . . . . . . . . . . . . 3 . Average Slot Usage (%) 80 | . 99 100 86 95 92 98 99 88 88 87 91 80 79 87 84 78 79 79 75 73 71 71 69 71 72 69 72 70 70 67 65 46 Engine 2 | . 14 14 14 14 7 . 7 8 5 . . 2 6 . . . . . . . . . . . . . . . . . . . Core 1 | . . . . . . 8 1 . . 4 7 . . 5 . . . . . . . . . . . . . . . . . . Reactor 2 | . . . . . . . . . . 1 . 3 . . 6 6 6 6 5 4 5 4 5 5 5 4 4 3 6 6 3 3 Treads 15 | . 25 28 15 . . 23 26 21 25 2 . 10 20 27 24 20 20 20 16 16 15 15 15 13 15 13 13 12 12 12 12 11 Leg 3 | . 1 . 12 28 27 2 . . . 20 30 9 . . . . . . . . . . . 1 . . . . . . . . Device 9 | . 7 13 14 4 13 18 18 8 17 10 . 6 4 5 6 3 1 14 5 6 4 2 2 9 14 12 10 11 13 6 10 7 Storage 6 | . 14 14 14 14 13 9 9 9 7 7 7 7 6 6 6 6 6 6 5 5 5 5 5 5 5 4 4 4 4 4 3 . Hackware 12 | . . . . . . . . 11 5 10 22 6 20 16 13 13 21 11 19 20 28 30 29 22 12 13 17 12 9 12 8 7 Protection 3 | . 6 . . 5 4 8 9 3 . . . 3 . 2 5 7 2 . 2 . . 1 . . 2 4 4 4 3 4 6 3 Energy Gun 6 | . . . . 9 12 21 17 1 . 6 7 2 6 16 5 2 12 17 13 6 . . . . 1 1 1 . . . 3 3 Energy Cannon 3 | . 6 14 1 12 6 4 3 6 1 . 5 . 2 . 1 . . 1 . 1 . 1 1 4 5 6 6 6 3 5 8 3 Ballistic Gun 3 | . 20 14 1 . . . . 2 4 9 1 15 6 . 11 15 2 . . 5 1 1 . 6 3 . 3 1 . . . . Ballistic Cannon 2 | . . . . . . . 3 4 10 . . 1 . . . . . . . . 5 4 3 . . . 2 4 9 7 3 . Special Weapon 1 | . . . . 1 . . 1 8 1 2 6 . . 1 . 1 3 . 2 . 3 2 4 1 . 3 1 3 2 1 . . Peak Build Rating 245 | 7 7 9 29 32 51 54 50 46 52 77 67 82 78 86 96 111 111 105 121 131 139 147 142 154 163 176 181 201 220 233 245 179 Average Rating 107 | 6 6 8 18 31 45 45 45 39 48 59 63 74 74 61 71 103 98 100 112 121 132 137 132 124 157 166 174 185 208 215 234 178 On Entrance 94 | 6 7 7 9 29 31 49 48 41 45 46 65 66 75 71 53 96 111 88 100 116 128 134 145 120 154 163 161 179 199 204 232 145 Naked Turns . | . . . . . . . . . . . . . . . . . . . . . . . . . . . . . . . . . Heaviest Build 336 | 15 53 33 47 54 140 124 117 235 240 265 220 255 226 245 197 189 189 182 189 191 199 194 192 192 211 218 225 237 266 336 336 96 Greatest Support 240 | 20 40 40 60 60 75 80 70 70 80 80 80 150 170 170 180 180 180 190 230 240 240 240 235 235 235 230 230 235 235 240 225 210 Greatest Overweight (x) 34 | . 1 . 1 . 2 2 2 34 22 23 2 2 1 3 2 1 1 . 1 1 . . . 1 . . . 1 1 1 1 . Average Overweight (x) . | . . . . . . 1 1 2 4 5 2 1 1 1 . . . . . . . . . . . . . . . . . . Largest Inventory Capacity 35 | 8 20 15 20 20 25 25 25 35 35 35 35 35 35 35 30 30 30 30 30 30 30 30 30 30 30 30 30 30 30 35 35 5 Average Capacity 29 | 8 13 15 17 20 24 25 25 26 35 35 35 35 35 32 30 30 30 30 30 30 30 30 30 30 30 30 30 30 30 30 34 5 Most Carried 35 | 6 9 13 20 20 25 25 25 35 35 35 35 35 34 35 30 30 30 30 30 30 30 30 30 30 30 30 30 30 30 35 35 2 Average Carried 28 | 6 7 11 15 19 23 22 24 25 32 34 34 34 32 31 29 29 30 29 29 29 29 29 29 23 29 29 29 29 29 30 33 . Final Capacity 35 | 8 15 15 20 20 25 25 25 35 35 35 35 35 35 30 30 30 30 30 30 30 30 30 30 30 30 30 30 30 30 35 35 5 Final Carried 35 | 6 9 13 20 20 22 25 25 35 34 35 35 35 33 30 30 30 30 30 29 30 30 30 25 30 30 30 29 30 29 34 33 . Class Distribution -------------------- 20% | Botlord-Gunner 16% | Hauler-Gunner 13% | Botlord-Tank 8% | Mutant 7% | Bothacker-Gunner 5% | Bothacker-Mutant 5% | Hauler-Tank 3% | Scavenger-Skirmisher 3% | Bothacker-Tank 3% | Bothacker-Skirmisher Dominant Class ---------------- Mutant | -10/Materials Mutant | -10/Mines Mutant | -10/Exiles Mutant | -9/Mines Skirmisher | -8/Materials Scavenger-Skirmisher | -8/Garrison Bothacker-Skirmisher | -8/Materials Bothacker-Skirmisher | -8/Garrison Bothacker-Mutant | -7/Factory Bothacker-Gunner | -7/Garrison Bothacker-Gunner | -7/Factory Bothacker-Gunner | -7/Garrison Botlord-Gunner | -6/Factory Botlord-Gunner | -6/Extension Botlord-Tank | -6/Cetus Botlord-Tank | -6/Archives Bothacker-Gunner | -6/Hub_04(d) Botlord-Gunner | -6/Garrison Botlord-Gunner | -5/Factory Botlord-Gunner | -5/Garrison Botlord-Tank | -4/Factory Botlord-Tank | -4/Garrison Botlord-Gunner | -4/Factory Botlord-Gunner | -4/Armory Hauler-Mutant | -4/Lab Hauler-Gunner | -3/Research Botlord-Gunner | -3/Garrison Hauler-Gunner | -3/Quarantine Hauler-Gunner | -2/Research Hauler-Gunner | -2/Testing Hauler-Tank | -2/Section 7 Scavenger-Mutant | -1/Access Resources | -11 -10 -10 -10 -9 -8 -8 -8 -8 -7 -7 -7 -7 -6 -6 -6 -6 -6 -6 -5 -5 -4 -4 -4 -4 -4 -3 -3 -3 -2 -2 -2 -1 ----------- Run | Yrd Mat Min Exi Min Mat Gar Mat Gar Fac Gar Fac Gar Fac Ext Cet Arc Hub Gar Fac Gar Fac Gar Fac Arm Lab Res Gar Qua Res Tes Sec Acc Matter Collected 18931 | 344 489 138 . 142 384 754 60 603 245 1345 89 1603 3 852 438 244 . 707 871 1017 349 1322 353 804 . 427 454 1279 1315 812 1488 . Remotely 2630 | . . . . . . . . . . . . . . . . . . . 56 . . 192 234 363 . . . 176 1004 . 605 . Salvage Created 29219 | 169 687 151 . 142 540 1480 118 412 189 1196 77 1738 47 1814 516 394 105 1955 1323 1577 188 1026 193 1352 . 968 1760 1917 1668 1021 4467 29 Parts 1118 | 13 44 18 . 2 29 54 5 13 13 48 2 68 2 55 29 26 3 37 53 49 6 24 9 48 . 36 81 97 80 32 140 2 Haulers Intercepted 5 | . 1 . . . 1 . 1 . . . . . . . . . . . 1 . 1 . . . . . . . . . . . Recyclers Shooed 9 | . 2 1 . . . . . . 2 . . . . 1 . . . . 1 . . . . . . 1 . . . . 1 . Parts Field Recycled . | . . . . . . . . . . . . . . . . . . . . . . . . . . . . . . . . . Retrieved Matter . | . . . . . . . . . . . . . . . . . . . . . . . . . . . . . . . . . Parts Self-Destructed . | . . . . . . . . . . . . . . . . . . . . . . . . . . . . . . . . . Prevented . | . . . . . . . . . . . . . . . . . . . . . . . . . . . . . . . . . Kills | -11 -10 -10 -10 -9 -8 -8 -8 -8 -7 -7 -7 -7 -6 -6 -6 -6 -6 -6 -5 -5 -4 -4 -4 -4 -4 -3 -3 -3 -2 -2 -2 -1 ------- Run | Yrd Mat Min Exi Min Mat Gar Mat Gar Fac Gar Fac Gar Fac Ext Cet Arc Hub Gar Fac Gar Fac Gar Fac Arm Lab Res Gar Qua Res Tes Sec Acc Combat Hostiles Destroyed 473 | . 13 6 . 9 11 33 3 12 5 24 1 22 1 28 4 2 2 18 19 28 3 22 3 27 . 9 32 28 23 9 76 . Melee 4 | . . . . . 1 . 1 . . . . . . . . . . . . . 1 . . . . . . 1 . . . . Guns 166 | . 11 2 . 1 4 15 . 7 1 20 1 17 1 23 4 1 1 11 11 8 1 4 . 7 . 2 2 . . . 11 . Cannons 138 | . 2 4 . 2 . 5 2 5 2 3 . 1 . . . . . . 1 6 1 15 1 10 . 5 8 12 19 4 30 . AOE 86 | . . . . 6 5 11 . . . . . 4 . . . . . 2 1 7 . 2 1 7 . . 13 1 . . 26 . Classes Destroyed 26 | 2 5 . . 1 2 3 1 1 1 1 . . . . . 1 . . . . . . . . . . 2 . . 3 3 . Worker 23 | . 1 2 . . . . . . 3 . . . . 2 . . . . 6 . . . 2 . . . . . 2 2 3 . Builder 9 | . . . . . . . . . 1 . . . . 3 . . . . . . . . . . . 1 . . 2 1 . 1 Tunneler 8 | 4 . 1 . . 1 . . . . . . . . . . . . . . . . . . . . . . . 2 . . . Hauler 5 | . 1 . . . 1 . 1 . . . . . . . . . . . 1 . 1 . . . . . . . . . . . Recycler 10 | 1 1 . . . 1 . . . . . . . . 2 . . . . . . . . . . . 3 . 1 . 1 . . Mechanic 3 | . . . . . . . . . . . . . . . . . . . . . . . . . . . . . . . 3 . Operator 8 | . . . . . . . . . . . . . . . . 8 . . . . . . . . . . . . . . . . Watcher 12 | . 2 . . . 1 . . . . . . . . 1 2 . . . 2 . . . . 2 . . . . 1 . 1 . Swarmer 73 | . 3 6 . . 4 3 1 5 4 9 . 5 . . . . . 5 1 4 . 2 1 5 . 3 8 4 . . . . Cutter 4 | . . . . . . . . . . 1 . . . . . . . . . . 1 . . . . . 2 . . . . . Saboteur 4 | . . . . . . . . . . . . . . . . . . . . . . . . . . . 3 . . . 1 . Grunt 164 | . 10 . . 3 2 22 1 3 . 10 2 7 . 14 . . 1 8 4 14 . 7 . . . 2 12 2 6 3 31 . Brawler 14 | . . . . . . . . 1 . . . 1 . 2 . . . 1 . 3 . . . . . . . 1 . . 5 . Duelist 25 | . . . . . . . 1 . . . . 1 . 1 . . . 1 . 3 . 1 . 3 . . . 1 4 . 9 . Protector 2 | . . . . . . . . . . . . . . . . . . . . . . . . . . . . . . . 2 . Researcher 3 | . . . . . . . . . . . . . . . . . . . . . . . . . . . . . . 1 2 . Sentry 49 | . . . . . 4 2 . . . 3 . 6 . 8 . 2 1 2 1 1 2 5 . 2 . 1 2 . 4 . 3 . Specialist 10 | . . . . . . 1 . 1 . 1 . 2 . . . . . . . . . . . 2 . . . 3 . . . . Hunter 37 | . . . . . 1 . . 2 . . . . 1 . . . . . 6 1 . 3 2 8 . 2 1 2 2 2 4 . Programmer 47 | . . . . . . 3 . . 1 1 . . . 1 . . . 1 7 . . 4 . 7 . . . 3 6 2 11 . Q-Series 2 | . . . . . . . . . . . . . . . . . . . . . . . . . . . . . . 1 1 . Behemoth 14 | . . . . . . 2 . . . . . . . 2 . . . 2 . 3 . . . . . 1 2 . 1 . 1 . Cetus Guard 4 | . . . . . . . . . . . . . . . 4 . . . . . . . . . . . . . . . . . Quarantine Guard 12 | . . . . . . . . . . . . . . . . . . . . . . . . . . . . 12 . . . . Enhanced Grunt 1 | . . . . . . . . . . . . . . . 1 . . . . . . . . . . . . . . . . . Tracker 2 | . . . . . . . . . . . . . . . . . . . . . . . . . . . . . . . 2 . Combat Programmer 2 | . . . . . . . . . . . . . . . . . . . . . . . . . . . . . . . 2 . Executioner 4 | . . . . . . . . . . . . . . . . . . . . . . . . . . . 2 . . . 2 . Alpha 7 2 | . . . . . . . . . . . . . . . . . . . . . . . . . . . . . . . 2 . Fortress 1 | . . . . . . . . . . . . . . . . . . . . . . . . . . . . . . 1 . . Assembled 6 | . . . . 6 . . . . . . . . . . . . . . . . . . . . . . . . . . . . Guerrilla 2 | . . . . . . . . . . . . . . . 2 . . . . . . . . . . . . . . . . . Best Kill Streak 17 | 2 3 3 . 6 7 6 3 5 4 5 1 4 1 6 4 3 1 3 2 9 3 5 5 6 . 5 7 3 10 4 17 1 Combat Bots Only 12 | . 3 3 . 6 6 6 2 5 3 5 1 4 1 3 3 2 1 3 2 9 2 5 3 6 . 4 7 3 6 3 12 . Max Kills in Single Turn 5 | 1 1 2 . 2 3 3 1 1 1 2 1 2 1 3 2 1 1 2 1 3 1 2 1 3 . 1 5 1 1 3 4 1 Gunslinging 1 | . . . . . . . . . . . . 1 . 1 . . . . . . . . . . . . . . . . . . Exploded 5 | . . . . 2 3 3 . . . . . 2 . . . . . 2 1 3 . 2 1 3 . . 5 1 . . 3 . Melee 1 | . . . . . 1 . 1 . . . . . . . . . . . . . 1 . . . . . . 1 . . . . Uniques/NPCs Destroyed . | . . . . . . . . . . . . . . . . . . . . . . . . . . . . . . . . . Combat | -11 -10 -10 -10 -9 -8 -8 -8 -8 -7 -7 -7 -7 -6 -6 -6 -6 -6 -6 -5 -5 -4 -4 -4 -4 -4 -3 -3 -3 -2 -2 -2 -1 -------- Run | Yrd Mat Min Exi Min Mat Gar Mat Gar Fac Gar Fac Gar Fac Ext Cet Arc Hub Gar Fac Gar Fac Gar Fac Arm Lab Res Gar Qua Res Tes Sec Acc Hostile Shots Fired 3543 | . 49 14 . 22 85 185 24 124 57 180 6 191 18 222 25 16 62 103 144 131 33 133 59 158 . 43 142 183 247 70 787 30 Missed 927 | . 15 4 . 2 35 51 8 31 19 56 1 63 6 86 6 5 18 33 40 30 12 38 19 31 . 18 49 37 53 16 132 13 Damage Taken 43334 | . 483 77 . 304 729 2173 270 1195 421 1610 92 1481 294 1488 398 245 454 1024 1879 1912 593 1678 783 2570 . 606 2010 3263 4559 1546 8665 532 Core 3815 | . 93 15 . 11 75 280 19 145 63 286 . 115 . 160 18 45 28 80 126 169 25 229 108 143 . 19 108 40 228 20 953 214 Absorbed by Shields 6622 | . . . . . . . . . 82 29 . 31 . 162 9 . . 103 . 77 . 435 . 207 . . 301 . . . 5186 . Reduced by Siege Mode 1625 | . . . . . . . . . . . . 6 . . 10 . . 28 102 79 . 105 47 205 . 16 88 125 500 62 252 . Redirected to Shielding 137 | . . . . . . . . . . . . . . . . . . . . . . . . . . . . . . . 137 . Ignored by Resistances 2246 | . . . . . . 27 . . . . . 80 . 31 143 . . . . . . . . . . . . . . . 1965 . Regen/Repaired (Parts) 11530 | . 207 . . . . . . . . . . . . . . . . . 1217 . 370 610 . . . 153 695 2536 1574 942 2704 522 Core Remaining (%) 55 | 100 . . . 52 . . . 5 . . . 33 . . . . . 61 . 70 . . . . 56 . . 82 . . 6 86 Volleys Fired 2222 | 28 64 14 . 18 29 113 20 80 21 107 30 116 7 98 24 29 10 117 114 110 25 95 51 99 . 78 116 156 165 71 192 25 Largest 4 | 2 2 2 . 2 3 3 3 3 2 3 3 3 2 3 3 3 3 3 3 3 2 2 1 3 . 1 2 1 4 4 4 1 Hottest 405 | 40 100 80 . 116 187 225 225 192 90 235 160 235 160 240 140 240 240 263 263 405 110 155 120 120 . 120 158 240 120 260 330 120 Shots Fired 3588 | 56 123 29 . 22 54 213 36 105 26 208 38 199 10 195 68 86 20 267 234 186 31 120 52 126 . 78 117 154 214 88 408 25 Gun 1812 | 56 109 15 . 4 27 139 16 36 10 164 10 163 6 144 57 85 15 237 173 123 10 29 . 42 . 16 28 1 . 1 96 . Cannon 1389 | . 8 14 . 9 24 61 20 46 13 23 7 24 3 10 11 . . 22 29 43 8 65 19 70 . 45 75 134 207 86 288 25 Launcher 72 | . . . . 6 3 13 . . . . . 3 . . . . . 3 . 6 . 3 . 6 . . 5 . . . 24 . Special 315 | . 6 . . 3 . . . 23 3 21 21 9 1 41 . 1 5 5 32 14 13 23 33 8 . 17 9 19 7 1 . . Kinetic 960 | 56 109 15 . . . . 7 35 15 97 4 153 . 3 52 60 . . 3 55 18 85 6 42 . . 6 8 70 19 42 . Thermal 2120 | . 14 14 . 16 51 200 29 34 8 90 13 34 9 151 11 25 15 259 199 106 . 2 3 60 . 42 51 112 137 68 342 25 Explosive 72 | . . . . 6 3 13 . . . . . 3 . . . . . 3 . 6 . 3 . 6 . . 5 . . . 24 . Electromagnetic 130 | . . . . . . . . 13 . . . . . . 5 . . . . 5 . 7 10 10 . 19 46 15 . . . . Robot Hit Streak 40 | 8 10 4 . 5 15 17 6 12 4 26 8 17 12 24 11 13 12 27 29 15 11 16 20 19 . 13 17 17 25 15 40 1 Robot Miss Streak 7 | 3 7 2 . 2 4 4 1 2 2 4 4 4 1 6 2 3 2 3 4 2 1 3 2 7 . 3 2 3 2 2 4 1 Penetration Max 1 | . . . . . . . . . . 1 . . . 1 1 1 . . . . . 1 . 1 . . 1 . . . . . Secondary Targets 23 | . 2 . . . 1 . . 1 . 2 . 4 . 6 1 . . 3 . . . . . 3 . . . . . . . . Max Gunslinging Chain 1 | . 1 . . . 1 . . 1 . 1 . 1 . 1 1 . . 1 . . . . . 1 . . . . . . . . Capacitor 461 | . . . . . . . . . . . . . . . . . . . . . . . 9 48 . 61 78 127 137 1 . . Shots Hit Robots 2135 | 27 65 15 4 9 30 95 18 51 16 132 25 120 6 161 51 57 19 167 137 115 24 83 39 74 . 52 73 69 120 33 247 1 Core Hits 1110 | 6 32 9 . 15 18 64 6 13 7 52 4 67 4 115 23 34 9 67 47 53 6 30 4 48 . 20 47 34 46 13 217 . Critical Kills 58 | . . . . . . 1 . . . 1 . 6 . 1 3 1 . . 1 5 . 2 . 4 . . 5 11 2 6 9 . Critical Parts Destroyed 20 | . . . . . 1 . . . 1 2 . 3 . 1 1 2 . . . 3 1 1 . 4 . . . . . . . . Critical Strikes 166 | . . . . 2 3 10 1 3 1 4 . 9 . 2 5 3 . 26 15 16 2 13 . 9 . . 6 11 6 8 11 . Burn 65 | . . . . 2 2 9 1 3 . . . . . . . . . 26 14 8 . . . . . . . . . . . . Meltdown 40 | . . . . . . 1 . . . . . . . 1 . . . . . 3 . . . 2 . . 5 11 2 6 9 . Destroy 39 | . . . . . . . . . . 4 . 9 . 1 5 3 . . 1 5 1 3 . 7 . . . . . . . . Blast 15 | . . . . . . . . . . . . . . . . . . . . . 1 6 . . . . . . 4 2 2 . Corrupt 3 | . . . . . . . . . . . . . . . . . . . . . . 2 . . . . 1 . . . . . Smash 2 | . . . . . 1 . . . 1 . . . . . . . . . . . . . . . . . . . . . . . Sever 2 | . . . . . . . . . . . . . . . . . . . . . . 2 . . . . . . . . . . Melee Attacks 126 | . . . 4 . 8 9 3 6 10 16 1 15 5 1 . . . 8 10 5 . 7 . . 12 . . 4 . . 2 . Kinetic 4 | . . . . . . . . . . . . . . . . . . . . . . . . . . . . 4 . . . . Impact 77 | . . . . . 3 9 3 6 10 16 1 15 5 1 . . . 8 . . . . . . . . . . . . . . Slashing 41 | . . . . . 5 . . . . . . . . . . . . . 10 5 . 7 . . 12 . . . . . 2 . Piercing . | . . . . . . . . . . . . . . . . . . . . . . . . . . . . . . . . . Sneak Attacks 4 | . . . 4 . . . . . . . . . . . . . . . . . . . . . . . . . . . . . Combat Hostiles . | . . . . . . . . . . . . . . . . . . . . . . . . . . . . . . . . . Follow-up Attacks 4 | . . . . . 4 . . . . . . . . . . . . . . . . . . . . . . . . . . . Damage Inflicted 82171 | 338 925 253 . 537 952 3697 461 884 507 2650 207 2998 146 4163 1304 1522 362 4247 3179 4307 643 4278 630 4255 . 1361 4493 4536 5572 1765 20954 45 Guns 28136 | 338 834 106 . 45 386 1526 178 353 98 2323 131 2447 146 3039 1025 1522 362 3737 2536 1939 164 477 . 926 . 184 473 . . . 2841 . Cannons 33898 | . 91 147 . 103 83 804 218 531 221 327 76 284 . 470 279 . . 100 348 1062 447 3082 630 1921 . 1155 2527 3735 5572 1439 8201 45 Explosions 18701 | . . . . 368 271 1367 . . . . . 267 . 620 . . . 410 206 1306 . 280 . 1367 . . 1493 615 . 326 9805 . Melee 1039 | . . . . . 212 . 65 . 162 . . . . . . . . . . . . 439 . . . . . 161 . . . . Ramming 397 | . . . . 21 . . . . 26 . . . . 34 . . . . 89 . 32 . . 41 . 22 . 25 . . 107 . Kinetic 17239 | 338 834 106 . . . . 124 160 255 1502 23 2220 . 90 942 966 . . 33 748 611 3382 211 926 . . 195 161 2003 430 979 . Thermal 43636 | . 91 147 . 148 469 2379 272 567 64 1148 184 511 146 4039 279 556 362 3837 3057 2249 . 25 86 1637 . 1024 2120 3553 3569 1009 10063 45 Explosive 16717 | . . . . 368 271 1318 . . . . . 267 . . . . . 410 . 1085 . 280 . 1367 . . 1220 . . 326 9805 . Electromagnetic 3304 | . . . . . . . . 157 . . . . . . 83 . . . . 225 . 152 333 284 . 315 958 797 . . . . Impact 341 | . . . . . 114 . 65 . 162 . . . . . . . . . . . . . . . . . . . . . . . Slashing 537 | . . . . . 98 . . . . . . . . . . . . . . . . 439 . . . . . . . . . . Piercing . | . . . . . . . . . . . . . . . . . . . . . . . . . . . . . . . . . Highest Corruption 55 | . 2 2 2 2 . 8 8 8 1 1 1 6 . . 4 7 . 3 5 6 . 1 3 9 9 1 1 17 8 14 55 5 Average Corruption 7 | . 2 2 2 2 . 7 8 7 1 1 1 5 . . 4 3 . 3 3 5 . 1 1 6 9 1 1 12 6 11 26 3 Corruption Purged 21 | . . . . . . . . 1 . . . . . . . 7 . . . 5 . . . . . . . 8 . . . . Corruption Blocked 12 | . . . . . . . . . . . . . . . . . . . . . . . . . . . . 12 . . . . Effects 873 | . 24 14 7 6 . 85 13 61 . 23 5 63 . . 2 12 . 15 38 51 . 3 4 36 27 5 7 120 27 53 171 1 Message Errors 202 | . 4 6 1 1 . 15 2 17 . 8 . 18 . . . 2 . 4 10 10 . 1 2 11 7 2 1 21 7 18 34 . Matter Fused 197 | . 8 2 . 3 . 23 5 11 . 4 1 10 . . . 3 . 3 5 15 . . . 8 4 . 1 30 7 13 41 . Heat Flow Errors 114 | . 4 1 3 1 . 8 . 7 . 2 2 8 . . 1 1 . 1 6 7 . . . 4 4 1 2 23 6 4 18 . Energy Discharges 102 | . 3 4 . 1 . 8 2 5 . 2 . 8 . . . 1 . 1 7 7 . . 1 3 2 2 . 19 . 4 22 . Parts Rejected 8 | . . . . . . 1 1 1 . . . . . . . . . . . . . . . 1 . . . 1 1 1 1 . Parts Fused 7 | . . . . . . 2 . . . . . . . . . . . . . 1 . . . . . . . 1 . . 2 1 Data Loss (minor) 110 | . 3 . 3 . . 14 . 9 . 3 1 12 . . 1 2 . 4 5 6 . 1 . 3 8 . . 11 2 7 15 . Data Loss (major) 31 | . 1 . . . . 6 2 3 . . . 3 . . . . . . . 2 . 1 . 2 2 . 1 4 . 1 3 . Misfires 33 | . 1 1 . . . 2 . 6 . 2 1 1 . . . 2 . 1 2 1 . . 1 2 . . . 2 2 2 4 . Alerts 19 | . . . . . . 2 1 2 . 1 . 2 . . . 1 . . . 1 . . . . . . 2 2 . 1 4 . Misdirections 7 | . . . . . . . . . . . . . . . . . . . . . . . . . . . . 2 . . 5 . Weapon Failures 43 | . . . . . . 4 . . . 1 . 1 . . . . . 1 3 1 . . . 2 . . . 4 2 2 22 . Overload Shots 3 | . . . . . . . . . . . . . . . . . . . . 1 . . . . . . . 1 . 1 . . Effects 1 | . . . . . . . . . . . . . . . . . . . . . . . . . . . . . . 1 . . Heat Surge 1 | . . . . . . . . . . . . . . . . . . . . . . . . . . . . . . 1 . . Overflow Damage 2229 | . . . . 9 53 80 1 1 101 . . . . 159 . . . . 27 65 65 254 31 98 . 46 157 214 212 24 617 15 Projectiles 1456 | . . . . . . . 1 1 13 . . . . 82 . . . . 9 56 65 210 31 98 . 46 71 194 212 2 350 15 Explosions 589 | . . . . 9 19 80 . . . . . . . 77 . . . . . 9 . . . . . . 86 20 . 22 267 . Melee 184 | . . . . . 34 . . . 88 . . . . . . . . . 18 . . 44 . . . . . . . . . . Knockbacks 56 | . . . . . . . 2 . 4 . . 1 . . . . . . . . 1 13 1 . . . . 1 21 3 9 . Impact 2 | . . . . . . . . . 1 . . . . . . . . . . . . . . . . . . 1 . . . . Kinetic 48 | . . . . . . . 2 . 2 . . 1 . . . . . . . . 1 10 1 . . . . . 20 3 8 . Secondary 6 | . . . . . . . . . 1 . . . . . . . . . . . . 3 . . . . . . 1 . 1 . Self-Inflicted Damage 848 | . 91 . . 33 . 19 . . . . . . . . . . . 16 29 34 . 74 . . . . 144 51 . 118 239 . Shots 19 | . 1 . . 2 . 1 . . . . . . . . . . . 1 1 1 . 1 . . . . 2 1 . 2 6 . Rammed 25 | . . . . . . . . . 3 . . . . 1 . . . . 5 . 1 . . 7 . . . . . . 8 . Targets Rammed 32 | . . . . 4 . . . . 3 . . . . 1 . . . . 6 . 1 . . 7 . 1 . 1 . . 8 . Kicked 4 | . . . . 4 . . . . . . . . . . . . . . . . . . . . . . . . . . . . Crushed 3 | . . . . . . . . . . . . . . . . . . . 1 . . . . . . 1 . 1 . . . . Highest Temperature 624 | . 232 96 237 303 201 312 . 437 404 419 285 340 36 351 231 315 465 268 207 349 196 108 260 365 . 152 542 624 398 388 555 192 Average Temperature 93 | . 72 28 107 131 67 112 . 144 107 96 98 74 17 84 35 88 183 55 67 98 33 17 98 117 . 64 152 126 89 113 121 85 Received Heat Transfer 6823 | . 201 . . 178 162 906 54 234 . 363 51 437 12 482 27 27 108 249 213 407 45 192 18 204 . 63 227 511 405 566 472 9 Effects 30 | . . . . 1 . 4 . 2 . 5 . 2 . 1 . . 1 . . 3 . . . 3 . . 1 2 1 . 4 . Shutdowns 2 | . . . . . . . . . . . . . . . . . . . . 1 . . . . . . . . 1 . . . Energy Bleed 7 | . . . . 1 . 1 . 1 . . . 1 . 1 . . 1 . . . . . . 1 . . . . . . . . Interference 16 | . . . . . . 3 . . . 3 . 1 . . . . . . . 2 . . . 2 . . . 2 . . 3 . Matter Decay 2 | . . . . . . . . . . 1 . . . . . . . . . . . . . . . . . . . . 1 . Short Circuit 2 | . . . . . . . . 1 . 1 . . . . . . . . . . . . . . . . . . . . . . Damage (minor) 1 | . . . . . . . . . . . . . . . . . . . . . . . . . . . 1 . . . . . Siege Activations 86 | . . . . . . . . . . . . 2 . 2 1 . . 3 8 6 . 5 1 6 . 1 6 13 7 4 21 . Total Turns 1286 | . . . . . . . . . . . . 12 . 18 28 . . 50 147 63 . 98 12 98 . 6 86 96 127 72 373 . Longest Duration 97 | . . . . . . . . . . . . 10 . 13 28 . . 20 55 20 . 27 12 32 . 6 26 31 69 24 97 . Robots Corrupted 13 | . . . . . 1 . . . 2 . . . . . . . . . . 1 . 1 1 1 . 1 3 2 . . . . Combat Hostiles 13 | . . . . . 1 . . . 2 . . . . . . . . . . 1 . 1 1 1 . 1 3 2 . . . . Parts Fried 34 | . . . . . 2 . . . 2 . . . . . . . . . . 2 . 1 2 4 . 1 11 9 . . . . Impact Corruptions 6 | . . . . . 1 . . . 4 . . . . . . . . . 1 . . . . . . . . . . . . . Robots Melted 74 | . . . . . . 3 . . . 1 . . . 5 . 1 1 12 6 6 . . . 2 . 1 6 11 4 6 9 . Combat Hostiles 66 | . . . . . . 2 . . . 1 . . . 5 . 1 1 6 6 6 . . . 2 . 1 6 11 4 5 9 . Parts Melted 267 | . . . . 2 3 16 3 8 . 7 1 2 1 23 . 7 1 47 29 13 . . . 5 . 4 11 26 12 14 32 . Heat Transferred 64776 | . 185 296 . 440 1073 5186 650 1300 100 2084 400 1137 325 7550 278 1275 825 10925 7196 4283 . 37 74 1164 . 888 2019 2872 2849 955 8373 37 Parts Sabotaged 3 | . . . . . . . . . . . . . . . . . . . . . . . . . . . . . 2 . 1 . Parts Stolen . | . . . . . . . . . . . . . . . . . . . . . . . . . . . . . . . . . Parts Stripped 15 | . . . . . . . . . . . . . . . . . . . . . . . . . . . . 15 . . . . Power Chain Reactions 1 | . . . . . . . . . . . . . . . . . . . . . . . . . . . 1 . . . . . Alert | -11 -10 -10 -10 -9 -8 -8 -8 -8 -7 -7 -7 -7 -6 -6 -6 -6 -6 -6 -5 -5 -4 -4 -4 -4 -4 -3 -3 -3 -2 -2 -2 -1 ------- Run | Yrd Mat Min Exi Min Mat Gar Mat Gar Fac Gar Fac Gar Fac Ext Cet Arc Hub Gar Fac Gar Fac Gar Fac Arm Lab Res Gar Qua Res Tes Sec Acc Peak Influence 2518 | 25 236 85 . 104 353 1892 997 1188 623 2064 1099 1873 1030 1382 774 583 339 1163 644 1685 981 1468 864 668 . 206 1327 1154 963 550 2518 1566 Initial 1420 | . 16 . . . 40 122 922 599 623 274 1083 336 982 436 773 270 36 207 610 189 884 497 770 229 . . 4 746 648 333 257 1420 Average 659 | 14 80 33 . 23 174 969 923 900 498 1097 570 944 972 476 718 396 190 727 271 864 857 1019 617 393 . 78 508 879 651 428 905 1482 Maximum Alert Level 5 | . 1 . . . 1 5 3 4 2 5 3 5 3 4 3 2 1 4 2 5 3 4 3 2 . 1 4 4 3 2 5 4 Low Security (%) 15 | 100 90 100 . 100 42 4 . . . . . . . 7 . 18 47 . 46 1 . . . 2 . 97 34 . . . . . Level 1 17 | . 9 . . . 57 10 . . 13 6 . 10 . 48 . 35 52 14 30 19 . . 22 48 . 2 6 . . 38 38 . Level 2 23 | . . . . . . 21 . 10 86 4 91 31 . 25 33 46 . 37 23 17 2 17 20 49 . . 29 7 61 61 11 . Level 3 28 | . . . . . . 25 100 67 . 53 8 18 100 12 66 . . 42 . 18 97 40 56 . . . 19 83 38 . 12 . Level 4 11 | . . . . . . 21 . 22 . 17 . 27 . 5 . . . 5 . 35 . 41 . . . . 9 9 . . 17 100 Level 5 4 | . . . . . . 15 . . . 17 . 11 . . . . . . . 6 . . . . . . . . . . 18 . High Security . | . . . . . . . . . . . . . . . . . . . . . . . . . . . . . . . 1 . Max Security . | . . . . . . . . . . . . . . . . . . . . . . . . . . . . . . . . . Squads Dispatched 105 | . . . . 1 4 . 2 . 1 . 3 . 3 5 . . 5 . 12 . 6 . . 7 . 9 . 5 9 7 25 1 Investigation 19 | . . . . . 2 . . . . . 1 . . 1 . . 1 . 5 . . . . . . 4 . 2 1 2 . . Extermination 16 | . . . . . . . . . 1 . . . . . . . . . 3 . 1 . . 3 . . . 1 2 1 4 . Reinforcement 36 | . . . . . 2 . 2 . . . 1 . 2 2 . . 3 . 3 . 2 . . 4 . 5 . . 2 3 4 1 Assault 24 | . . . . 1 . . . . . . . . 1 2 . . . . 1 . 2 . . . . . . 2 4 1 10 . Garrison 3 | . . . . . . . . . . . 1 . . . . . 1 . . . 1 . . . . . . . . . . . Intercept 7 | . . . . . . . . . . . . . . . . . . . . . . . . . . . . . . . 7 . Searches Triggered . | . . . . . . . . . . . . . . . . . . . . . . . . . . . . . . . . . Construction Impeded 6 | . . . . . . . . . . . . . . 2 . . . . . . . . . . . 1 . . . 1 1 1 Haulers Reinforced 2 | . . . . . . . . . . . . . . . . . . . . . 1 . . . . 1 . . . . . . Active Scanning Responses . | . . . . . . . . . . . . . . . . . . . . . . . . . . . . . . . . . Cargo Convoy Interrupts 2 | . . . . . . . . . 1 . . . . . . . . . 1 . . . . . . . . . . . . . Alert ID Control Effect 34 | . . . . . . . . . . . . . . . . . . . . 3 9 10 6 2 . . 2 2 . . . . Stealth | -11 -10 -10 -10 -9 -8 -8 -8 -8 -7 -7 -7 -7 -6 -6 -6 -6 -6 -6 -5 -5 -4 -4 -4 -4 -4 -3 -3 -3 -2 -2 -2 -1 --------- Run | Yrd Mat Min Exi Min Mat Gar Mat Gar Fac Gar Fac Gar Fac Ext Cet Arc Hub Gar Fac Gar Fac Gar Fac Arm Lab Res Gar Qua Res Tes Sec Acc Distress Signals 37 | . 2 . . . . . . . . . 1 . . 2 2 . 2 . 4 . 2 . 2 1 . 9 . 2 2 1 4 1 Communications Jammed 30 | . . . . . . . . . . . . . . . . . . . . . . . . . . . . . . . 30 . Distress Signals 30 | . . . . . . . . . . . . . . . . . . . . . . . . . . . . . . . 30 . Times Spotted 926 | . 23 7 . 13 21 30 13 26 22 42 8 33 9 59 9 24 6 25 49 40 16 40 36 43 . 33 43 52 43 15 137 9 Peak Tracking Total 14 | . 5 3 . 5 6 6 8 7 12 8 3 8 5 6 5 1 3 4 5 8 6 8 10 7 . 6 14 11 8 3 13 6 Tactical Retreats 44 | . 2 1 . . 2 2 3 . 2 5 . 1 1 2 . . 1 . 1 . . 3 . 3 . . 4 2 . . 8 1 Traps | -11 -10 -10 -10 -9 -8 -8 -8 -8 -7 -7 -7 -7 -6 -6 -6 -6 -6 -6 -5 -5 -4 -4 -4 -4 -4 -3 -3 -3 -2 -2 -2 -1 ------- Run | Yrd Mat Min Exi Min Mat Gar Mat Gar Fac Gar Fac Gar Fac Ext Cet Arc Hub Gar Fac Gar Fac Gar Fac Arm Lab Res Gar Qua Res Tes Sec Acc Traps Triggered 36 | . 2 . . . . 5 . 1 . 4 . 7 . 1 . . . 1 1 2 . 2 1 2 . . . 2 . 4 1 . Indirectly . | . . . . . . . . . . . . . . . . . . . . . . . . . . . . . . . . . Trap Hack Attempts . | . . . . . . . . . . . . . . . . . . . . . . . . . . . . . . . . . Triggered . | . . . . . . . . . . . . . . . . . . . . . . . . . . . . . . . . . Disarmed . | . . . . . . . . . . . . . . . . . . . . . . . . . . . . . . . . . Reprogrammed . | . . . . . . . . . . . . . . . . . . . . . . . . . . . . . . . . . Reused . | . . . . . . . . . . . . . . . . . . . . . . . . . . . . . . . . . Traps Extracted . | . . . . . . . . . . . . . . . . . . . . . . . . . . . . . . . . . Installed . | . . . . . . . . . . . . . . . . . . . . . . . . . . . . . . . . . Triggered 2 | . . . . . . . . . . . . . . . . . . . 2 . . . . . . . . . . . . . Machines | -11 -10 -10 -10 -9 -8 -8 -8 -8 -7 -7 -7 -7 -6 -6 -6 -6 -6 -6 -5 -5 -4 -4 -4 -4 -4 -3 -3 -3 -2 -2 -2 -1 ---------- Run | Yrd Mat Min Exi Min Mat Gar Mat Gar Fac Gar Fac Gar Fac Ext Cet Arc Hub Gar Fac Gar Fac Gar Fac Arm Lab Res Gar Qua Res Tes Sec Acc Machines Disabled 128 | . 1 . . . . 6 1 4 1 3 1 6 . 4 . 2 2 7 2 9 1 6 8 3 4 . 7 18 . 8 23 1 Max in Single Turn 3 | . 1 . . . . 1 1 1 1 1 1 1 . 2 . 1 . 2 1 1 . 2 1 1 1 . 1 3 . 2 1 1 Garrison Access 6 | . . . . . . . . . . . . . . . . . . . 2 . . . . . . . . 1 1 1 1 . Garrison Relay 35 | . . . . . . 6 . 3 . 2 . 5 . . . . . 4 . 9 . 3 . . . . 3 . . . . . Network Hub 1 | . . . . . . . . . . . . . . . . . 1 . . . . . . . . . . . . . . . Energy Cycler 2 | . . . . . . . . . . . . . . 2 . . . . . . . . . . . . . . . . . . Machines Repaired . | . . . . . . . . . . . . . . . . . . . . . . . . . . . . . . . . . Machines Dismantled . | . . . . . . . . . . . . . . . . . . . . . . . . . . . . . . . . . Machines Sabotaged 1 | . . . . . . . . . . . . . . . . . 1 . . . . . . . . . . . . . . . Overloaded Fab Kills . | . . . . . . . . . . . . . . . . . . . . . . . . . . . . . . . . . Hacking | -11 -10 -10 -10 -9 -8 -8 -8 -8 -7 -7 -7 -7 -6 -6 -6 -6 -6 -6 -5 -5 -4 -4 -4 -4 -4 -3 -3 -3 -2 -2 -2 -1 --------- Run | Yrd Mat Min Exi Min Mat Gar Mat Gar Fac Gar Fac Gar Fac Ext Cet Arc Hub Gar Fac Gar Fac Gar Fac Arm Lab Res Gar Qua Res Tes Sec Acc Machines Accessed 129 | . 9 . 1 . 11 2 3 3 2 2 4 2 4 10 . 1 2 4 16 3 2 2 3 7 1 5 2 8 5 6 8 1 Terminals 82 | . 8 . . . 9 2 1 3 . 2 1 2 2 9 . . 1 4 6 3 . 2 2 2 . 1 2 5 4 4 6 1 Fabricators 12 | . . . . . . . . . . . 1 . . . . . . . 4 . 1 . 1 3 . 1 . . . 1 . . Repair Stations 7 | . 1 . . . . . . . . . . . . . . . . . 2 . . . . 1 . . . 1 1 . 1 . Recycling Units 7 | . . . . . 1 . 1 . . . 1 . 1 1 . . . . . . . . . 1 . 1 . . . . . . Scanalyzers 5 | . . . . . . . . . 1 . . . 1 . . . . . 1 . . . . . . 1 . 1 . . . . Garrison Access 13 | . . . . . 1 . 1 . 1 . 1 . . . . . 1 . 3 . 1 . . . . 1 . 1 . 1 1 . Total Hacks 366 | . 28 . 1 . 32 3 6 4 6 2 10 4 7 19 . 3 3 10 63 11 6 11 14 14 1 20 4 28 17 18 19 2 Successful 167 | . 19 . 1 . 12 1 3 2 5 2 7 1 4 6 . 3 3 3 34 2 4 1 7 3 1 4 2 14 8 6 8 1 Failed 199 | . 9 . . . 20 2 3 2 1 . 3 3 3 13 . . . 7 29 9 2 10 7 11 . 16 2 14 9 12 11 1 Catastrophic 44 | . . . . . 2 1 . 1 . . . 2 . 3 . . . 1 10 3 . . 1 2 . 4 1 4 4 2 3 . Database Lockouts . | . . . . . . . . . . . . . . . . . . . . . . . . . . . . . . . . . Manual 136 | . 19 . 1 . 30 . 2 . 1 . 3 . . 7 1 . 1 2 37 1 . 5 7 4 . 2 . 9 4 . . . Terminals 236 | . 22 . . . 29 3 2 4 . 2 2 4 3 18 . . 1 10 32 11 . 11 11 5 . 6 4 17 13 13 11 2 Fabricators 33 | . . . . . . . . . . . 4 . . . . . . . 13 . 4 . 3 4 . 1 . . . 4 . . Repair Stations 30 | . 6 . . . . . . . . . . . . . . . . . 7 . . . . 1 . . . 5 4 . 7 . Recycling Units 20 | . . . . . 2 . 2 . . . 2 . 2 1 . . . . . . . . . 4 . 7 . . . . . . Scanalyzers 18 | . . . . . . . . . 3 . . . 2 . . . . . 7 . . . . . . 2 . 4 . . . . Garrison Access 24 | . . . . . 1 . 2 . 3 . 2 . . . . . 2 . 4 . 2 . . . . 4 . 2 . 1 1 . Terminal Hacks 66 | . 5 . 1 . 1 1 . 2 . 2 1 1 2 5 . 3 . 2 8 2 . 1 5 . 1 . 2 7 6 3 4 1 Record 7 | . . . . . . . . . . . . . . . . 3 . . . . . . . . 1 . . 2 1 . . . Robot Analysis 4 | . 3 . . . . . . . . . . . . . . . . . 1 . . . . . . . . . . . . . Prototype ID Bank 2 | . . . . . . . . . . . . . . . . . . . . . . . 1 . . . . 1 . . . . Open Door 7 | . . . . . . . . . . 1 . . 1 2 . . . . . . . . . . . . . . . 1 1 1 Level Access Points 1 | . . . . . . . . . . . . . . . . . . . . . . . . . . . . . . 1 . . Branch Access Points 3 | . . . . . . . . . . . 1 . . . . . . . . . . . 1 . . . . . 1 . . . Emergency Access Points 4 | . . . . . . . . . . . . 1 . . . . . . . 1 . 1 . . . . 1 . . . . . Terminal Index 5 | . . . . . 1 . . . . . . . . 1 . . . . 1 . . . 1 . . . . 1 . . . . Unreport Threat 10 | . 1 . . . . . . . . . . . . 1 . . . . 2 . . . 1 . . . . 1 3 . 1 . Locate Traps 2 | . . . . . . . . . . . . . . . . . . . 1 . . . . . . . . . . . 1 . Patrol Status 1 | . . . . . . . . . . . . . . . . . . . . . . . . . . . . 1 . . . . Transport Status 1 | . . . . . . . . . . . . . . . . . . . 1 . . . . . . . . . . . . . Hauler Manifests 3 | . . . . . . . . . . . . . . 1 . . . . 1 . . . 1 . . . . . . . . . Zone Layout 7 | . 1 . . . . . . . . . . . 1 . . . . . 1 . . . . . . . . 1 1 1 1 . Garrison Registry 3 | . . . . . . . . 1 . . . . . . . . . 1 . . . . . . . . 1 . . . . . Patrol Navigation 2 | . . . . . . 1 . . . . . . . . . . . . . 1 . . . . . . . . . . . . Security Stations 3 | . . . . . . . . 1 . 1 . . . . . . . 1 . . . . . . . . . . . . . . Derelict Proto ID Bank 1 | . . . 1 . . . . . . . . . . . . . . . . . . . . . . . . . . . . . Fabricator Hacks 15 | . . . . . . . . . . . 3 . . . . . . . 5 . 2 . 1 2 . . . . . 2 . . Network Status 4 | . . . . . . . . . . . 1 . . . . . . . 1 . . . 1 1 . . . . . . . . Load Schematic 7 | . . . . . . . . . . . 1 . . . . . . . 3 . 1 . . 1 . . . . . 1 . . Build 4 | . . . . . . . . . . . 1 . . . . . . . 1 . 1 . . . . . . . . 1 . . Repair Station Hacks 17 | . 6 . . . . . . . . . . . . . . . . . 4 . . . . . . . . 2 2 . 3 . Scan Component 9 | . 3 . . . . . . . . . . . . . . . . . 2 . . . . . . . . 1 1 . 2 . Repair 8 | . 3 . . . . . . . . . . . . . . . . . 2 . . . . . . . . 1 1 . 1 . Recycling Unit Hacks 3 | . . . . . . . 1 . . . 1 . . . . . . . . . . . . . . 1 . . . . . . Retrieve Components 3 | . . . . . . . 1 . . . 1 . . . . . . . . . . . . . . 1 . . . . . . Scanalyzer 11 | . . . . . . . . . 2 . . . 2 . . . . . 4 . . . . . . 1 . 2 . . . . Insert Component 7 | . . . . . . . . . 1 . . . 1 . . . . . 2 . . . . . . 1 . 2 . . . . Analyze 4 | . . . . . . . . . 1 . . . 1 . . . . . 2 . . . . . . . . . . . . . Garrison Access Hacks 21 | . . . . . 1 . 2 . 2 . 2 . . . . . 2 . 4 . 2 . . . . 2 . 2 . 1 1 . Unlock Access 9 | . . . . . 1 . 1 . 1 . 1 . . . . . 1 . 2 . 1 . . . . 1 . . . . . . Seal Access 4 | . . . . . . . . . . . . . . . . . . . 1 . . . . . . . . 1 . 1 1 . Coupler Status 8 | . . . . . . . 1 . 1 . 1 . . . . . 1 . 1 . 1 . . . . 1 . 1 . . . . Unauthorized Hacks 34 | . 8 . . . 10 . . . 1 . . . . 1 . . 1 1 9 . . . 1 1 . . . 1 . . . . Terminals 28 | . 8 . . . 9 . . . . . . . . 1 . . 1 1 5 . . . 1 1 . . . 1 . . . . Track 2 | . . . . . . . . . . . . . . . . . . 1 . . . . . 1 . . . . . . . . Assimilate 4 | . 2 . . . 1 . . . . . . . . . . . . . 1 . . . . . . . . . . . . . Botnet 4 | . 1 . . . 1 . . . . . . . . . . . . . 1 . . . 1 . . . . . . . . . Operators 4 | . . . . . 1 . . . . . . . . 1 . . . . 1 . . . . . . . . 1 . . . . Skim 13 | . 5 . . . 6 . . . . . . . . . . . . . 2 . . . . . . . . . . . . . Sabotage 1 | . . . . . . . . . . . . . . . . . 1 . . . . . . . . . . . . . . . Fabricators 3 | . . . . . . . . . . . . . . . . . . . 3 . . . . . . . . . . . . . Report 1 | . . . . . . . . . . . . . . . . . . . 1 . . . . . . . . . . . . . Recompile 2 | . . . . . . . . . . . . . . . . . . . 2 . . . . . . . . . . . . . Repair Stations 1 | . . . . . . . . . . . . . . . . . . . 1 . . . . . . . . . . . . . Mechanics 1 | . . . . . . . . . . . . . . . . . . . 1 . . . . . . . . . . . . . Recycling Units 1 | . . . . . 1 . . . . . . . . . . . . . . . . . . . . . . . . . . . Tunnel 1 | . . . . . 1 . . . . . . . . . . . . . . . . . . . . . . . . . . . Scanalyzers . | . . . . . . . . . . . . . . . . . . . . . . . . . . . . . . . . . Garrison Access 1 | . . . . . . . . . 1 . . . . . . . . . . . . . . . . . . . . . . . Restock 1 | . . . . . . . . . 1 . . . . . . . . . . . . . . . . . . . . . . . Data Cores Recovered 1 | . . . . . . . . . . . . . . . . . . . . . . . 1 . . . . . . . . . Used . | . . . . . . . . . . . . . . . . . . . . . . . . . . . . . . . . . Hacking Detections 105 | . 7 . . . 11 2 2 3 2 . 4 2 3 9 . . . 4 12 3 2 2 2 7 . 5 1 6 5 4 6 1 Full Trace Events 13 | . . . . . 1 1 . . . . 1 2 . 1 . . . 1 1 . . . . . . 1 . 1 1 2 . . Feedback Events 1 | . . . . . . . . . . . . . . . . . . . . . . . . . . 1 . . . . . . Corruption 1 | . . . . . . . . . . . . . . . . . . . . . . . . . . 1 . . . . . . Feedback Blocked . | . . . . . . . . . . . . . . . . . . . . . . . . . . . . . . . . . Robot Schematics Acquired 2 | . . . . . . . . . . . . . . . . . . . . . . . . . . . . . . 2 . . Robots Built . | . . . . . . . . . . . . . . . . . . . . . . . . . . . . . . . . . Authchips . | . . . . . . . . . . . . . . . . . . . . . . . . . . . . . . . . . Time . | . . . . . . . . . . . . . . . . . . . . . . . . . . . . . . . . . Total Robot Build Rating . | . . . . . . . . . . . . . . . . . . . . . . . . . . . . . . . . . Part Schematics Acquired 8 | . . . . . . . . . 1 . . . 1 . . . . . 1 . . . . . . . . . . 3 2 . Parts Built 4 | . . . . . . . . . . . 1 . . . . . . . 1 . 1 . . . . . . . . 1 . . Authchips 2 | . . . . . . . . . . . . . . . . . . . 1 . 1 . . . . . . . . . . . Time 280 | . . . . . . . . . . . 51 . . . . . . . 102 . 102 . . . . . . . . 25 . . Total Part Build Rating 18 | . . . . . . . . . . . 1 . . . . . . . 8 . 8 . . . . . . . . 1 . . Parts Repaired 8 | . 3 . . . . . . . . . . . . . . . . . 2 . . . . . . . . 1 1 . 1 . Time 476 | . 78 . . . . . . . . . . . . . . . . . 216 . . . . . . . . 108 37 . 37 . Parts Recycled . | . . . . . . . . . . . . . . . . . . . . . . . . . . . . . . . . . Recycled Matter . | . . . . . . . . . . . . . . . . . . . . . . . . . . . . . . . . . Retrieved Matter . | . . . . . . . . . . . . . . . . . . . . . . . . . . . . . . . . . Retrieved Components 14 | . . . . . . . 9 . . . 3 . . . . . . . . . . . . . . 2 . . . . . . Parts Scanalyzed 5 | . . . . . . . . . 1 . . . 1 . . . . . 2 . . . . . . . . 1 . . . . Part Schematics Acquired 3 | . . . . . . . . . 1 . . . 1 . . . . . 1 . . . . . . . . . . . . . Parts Damaged . | . . . . . . . . . . . . . . . . . . . . . . . . . . . . . . . . . Bothacking | -11 -10 -10 -10 -9 -8 -8 -8 -8 -7 -7 -7 -7 -6 -6 -6 -6 -6 -6 -5 -5 -4 -4 -4 -4 -4 -3 -3 -3 -2 -2 -2 -1 ------------ Run | Yrd Mat Min Exi Min Mat Gar Mat Gar Fac Gar Fac Gar Fac Ext Cet Arc Hub Gar Fac Gar Fac Gar Fac Arm Lab Res Gar Qua Res Tes Sec Acc Used RIF Installer 8 | . . . . . . 1 . 1 . 1 . 1 . . . . . 1 . 1 . 1 . . . . 1 . . . . . Command Fork 1 | . . . . . . . . . . . . 1 . . . . . . . . . . . . . . . . . . . . Zone Cloak 2 | . . . . . . . . 1 . . . . . . . . . . . . . . . . . . 1 . . . . . Robot Detection 1 | . . . . . . . . . . 1 . . . . . . . . . . . . . . . . . . . . . . Watcher Feeds 1 | . . . . . . . . . . . . . . . . . . . . . . 1 . . . . . . . . . . Alert ID Control 1 | . . . . . . . . . . . . . . . . . . 1 . . . . . . . . . . . . . . Structural Interface 1 | . . . . . . . . . . . . . . . . . . . . 1 . . . . . . . . . . . . Robots Hacked 139 | . . . 4 . . . . 13 2 5 6 5 1 8 . 1 4 4 14 6 7 10 19 4 . 7 6 8 4 1 . . Non-combat 40 | . . . 3 . . . . . 1 . 3 . 1 . . 1 4 . 6 . 3 . 5 2 . 4 . 4 2 1 . . Combat 99 | . . . 1 . . . . 13 1 5 3 5 . 8 . . . 4 8 6 4 10 14 2 . 3 6 4 2 . . . Robot Hacks Applied 175 | . . . 4 . . . . 14 2 6 12 6 1 9 . 1 5 5 22 7 7 11 25 5 . 9 6 12 5 1 . . parse_system 14 | . . . 4 . . . . 1 . 1 1 . . 1 . . . . 1 1 . 1 2 . . . . 1 . . . . no_distress 3 | . . . . . . . . . . . . . . . . . . . 2 . . . 1 . . . . . . . . . find_chute 3 | . . . . . . . . . 1 . . . 1 . . . . . 1 . . . . . . . . . . . . . ignore_repairs 6 | . . . . . . . . . . . . . . . . . . . . . . . . . . 3 . . 2 1 . . drop_inventory 7 | . . . . . . . . . . . 1 . . . . . 2 . 1 . 1 . 1 . . 1 . . . . . . find_station 3 | . . . . . . . . . . . . . . . . . . . . . . . 1 . . . . 2 . . . . purge_threat 11 | . . . . . . . . . . . 5 . . . . 1 . . 2 . . . 2 1 . . . . . . . . block_reporting 3 | . . . . . . . . . . . . . . . . . . . 1 . . . 2 . . . . . . . . . map_route 6 | . . . . . . . . . . . 1 . . . . . 1 . 3 . 1 . . . . . . . . . . . redirect_shields 1 | . . . . . . . . . . . . . . . . . . . . . . . . 1 . . . . . . . . find_scanalyzer 1 | . . . . . . . . . . . . . . . . . . . . . . . . . . . . 1 . . . . disable_scanner 1 | . . . . . . . . . . . . . . . . . . . . . . . . . . . . 1 . . . . locate_prototypes 1 | . . . . . . . . . . . . . . . . . . . . . . . . . . . . 1 . . . . report_analyses 1 | . . . . . . . . . . . . . . . . . . . . . . . . . . . . 1 . . . . find_garrison 5 | . . . . . . . . . . . . . . . . . . . 2 . . . . . . 1 . . 2 . . . mark_system 1 | . . . . . . . . . . . . . . . . . . . . . . 1 . . . . . . . . . . spike_heat 14 | . . . . . . . . 2 . 2 . . . 3 . . . . 1 1 . 1 1 . . 2 . . 1 . . . overload_power 1 | . . . . . . . . . . . . . . . . . 1 . . . . . . . . . . . . . . . amplify_resonance 21 | . . . . . . . . 4 . 1 . 2 . 2 . . . 2 1 1 1 2 2 . . 1 2 . . . . . wipe_record 1 | . . . . . . . . . . . . . . . . . . . 1 . . . . . . . . . . . . . reboot_system 2 | . . . . . . . . . . . . . . 1 . . . . . . . . . . . . 1 . . . . . overwrite_iff 21 | . . . . . . . . 2 . 1 2 3 . . . . . 2 . 2 1 3 4 . . . 1 . . . . . formatsys_low 10 | . . . . . . . . . . . 1 . . . . . 1 . 1 . 1 . 2 1 . 1 . 2 . . . . formatsys_high 38 | . . . . . . . . 5 1 1 1 1 . 2 . . . 1 5 2 2 3 7 2 . . 2 3 . . . . Relay Couplers Released 152 | . . . . . . 26 . 12 . 8 . 20 . . . . . 19 2 32 . 12 4 . . . 11 . 2 4 . . Machine Destruction 144 | . . . . . . 26 . 12 . 8 . 20 . . . . . 15 2 32 . 12 . . . . 11 . 2 4 . . Programmers 8 | . . . . . . . . . . . . . . . . . . 4 . . . . 4 . . . . . . . . . Attached 64 | . . . . . . . . 8 1 3 3 3 4 1 . . 1 2 6 6 4 4 6 1 . 1 4 3 1 2 . . Fabnet Peak Effective % . | . . . . . . . . . . . . . . . . . . . . . . . . . . . . . . . . . Robots Rewired 35 | . . . . . . . . . . 9 . . . 18 . . . 1 . 2 1 2 . . . 2 . . . . . . Allies Hacked . | . . . . . . . . . . . . . . . . . . . . . . . . . . . . . . . . . Hacks Repelled . | . . . . . . . . . . . . . . . . . . . . . . . . . . . . . . . . . Allies | -11 -10 -10 -10 -9 -8 -8 -8 -8 -7 -7 -7 -7 -6 -6 -6 -6 -6 -6 -5 -5 -4 -4 -4 -4 -4 -3 -3 -3 -2 -2 -2 -1 -------- Run | Yrd Mat Min Exi Min Mat Gar Mat Gar Fac Gar Fac Gar Fac Ext Cet Arc Hub Gar Fac Gar Fac Gar Fac Arm Lab Res Gar Qua Res Tes Sec Acc Total Allies 124 | . 1 . . 1 1 . . 7 1 11 4 4 . 26 5 . 2 6 7 6 5 8 14 3 . 3 3 6 . . . . Largest Group 14 | . 1 1 1 2 1 . . 2 1 7 3 2 . 14 13 5 7 3 2 2 7 6 5 5 . 1 2 3 . . . . Highest-Rated Group 525 | . 10 10 10 41 10 . . 30 32 143 74 64 . 505 525 410 456 199 49 136 438 392 298 252 . 47 68 170 . . . . Highest-Rated Ally 159 | . 10 10 10 31 10 . . 21 32 32 32 32 . 159 159 96 96 148 49 68 137 137 64 64 . 47 58 65 . . . . Total Orders 138 | . . 1 . . 4 . . 5 5 . 2 6 . 13 6 3 2 6 3 6 4 31 7 14 . . 7 9 4 . . . STAY 56 | . . 1 . . 1 . . 1 2 . 1 1 . 4 4 2 1 3 2 3 1 15 3 6 . . 4 1 . . . . ROAM 11 | . . . . . 1 . . 2 1 . . . . 1 . . . . . . 1 . 1 . . . 1 3 . . . . FOLLOW 54 | . . . . . 2 . . 2 2 . 1 2 . 8 2 1 1 3 1 3 1 10 2 8 . . 2 3 . . . . GUARD 1 | . . . . . . . . . . . . 1 . . . . . . . . . . . . . . . . . . . . AID 10 | . . . . . . . . . . . . . . . . . . . . . 1 6 1 . . . . 2 . . . . EXPLORE 4 | . . . . . . . . . . . . 2 . . . . . . . . . . . . . . . . 2 . . . RETURN 2 | . . . . . . . . . . . . . . . . . . . . . . . . . . . . . 2 . . . Ally Attacks 656 | . . . . 2 . . . 16 2 53 10 23 . 133 68 6 62 34 10 24 35 46 69 15 . 10 23 15 . . . . Total Damage 18637 | . . . . 41 . . . 243 19 873 226 675 . 2526 1689 228 2099 747 239 992 1430 2419 2049 660 . 331 743 408 . . . . Kills 100 | . . . . . . . . 3 . 7 3 6 . 23 4 2 6 1 . 7 9 12 11 2 . . 2 2 . . . . Allies Corrupted 1 | . . . . . 1 . . . . . . . . . . . . . . . . . . . . . . . . . . . Allies Melted 5 | . . . . . . . . . . . . . . . . . 1 . 1 1 . 1 . 1 . . . . . . . . Intel | -11 -10 -10 -10 -9 -8 -8 -8 -8 -7 -7 -7 -7 -6 -6 -6 -6 -6 -6 -5 -5 -4 -4 -4 -4 -4 -3 -3 -3 -2 -2 -2 -1 ------- Run | Yrd Mat Min Exi Min Mat Gar Mat Gar Fac Gar Fac Gar Fac Ext Cet Arc Hub Gar Fac Gar Fac Gar Fac Arm Lab Res Gar Qua Res Tes Sec Acc Robot Analysis Total 4 | . 3 . . . . . . . . . . . . . . . . . 1 . . . . . . . . . . . . . Derelict Logs Recovered 2 | . . 1 . 1 . . . . . . . . . . . . . . . . . . . . . . . . . . . . Drone Launches 5 | . . . . . . . . . . . . 1 . . . . . . . . . . . . . . . . 4 . . . Drone Recoveries 3 | . . . . . . . . . . . . 1 . . . . . . . . . . . . . . . . 2 . . . Exploration | -11 -10 -10 -10 -9 -8 -8 -8 -8 -7 -7 -7 -7 -6 -6 -6 -6 -6 -6 -5 -5 -4 -4 -4 -4 -4 -3 -3 -3 -2 -2 -2 -1 ------------- Run | Yrd Mat Min Exi Min Mat Gar Mat Gar Fac Gar Fac Gar Fac Ext Cet Arc Hub Gar Fac Gar Fac Gar Fac Arm Lab Res Gar Qua Res Tes Sec Acc Turns Passed 47777 | 169 1772 1025 369 266 1688 2668 530 2033 1300 3021 697 2420 494 3428 586 755 198 1789 3172 2096 862 1941 529 1358 878 864 1323 3113 1884 1439 2936 174 Spaces Moved 18154 | 70 615 596 295 180 736 794 173 493 364 775 220 762 180 967 178 251 69 748 1471 913 396 868 261 453 297 464 647 1447 673 538 1121 139 Core 4 | . . . . . . . . 4 . . . . . . . . . . . . . . . . . . . . . . . . Treads 15273 | . 522 596 114 . . 794 173 484 257 . . 550 180 967 178 251 69 748 1471 913 396 868 261 453 297 464 647 1447 673 538 893 69 Legs 2289 | 70 93 . 181 180 736 . . 5 . 592 220 212 . . . . . . . . . . . . . . . . . . . . Wheels 290 | . . . . . . . . . 107 183 . . . . . . . . . . . . . . . . . . . . . . Hover . | . . . . . . . . . . . . . . . . . . . . . . . . . . . . . . . . . Flight . | . . . . . . . . . . . . . . . . . . . . . . . . . . . . . . . . . Fastest Speed 90 | 120 120 160 90 90 90 243 240 240 230 230 260 240 240 240 160 160 160 160 160 160 160 155 155 155 150 150 150 150 155 146 140 166 Average Speed 199 | 120 171 160 117 90 172 272 242 314 310 321 260 246 240 251 238 230 179 160 163 165 160 159 155 191 152 150 150 160 218 211 229 166 Slowest Speed 1750 | 120 240 160 240 90 250 325 320 1750 410 1660 260 320 240 400 320 240 240 160 240 240 160 160 155 240 155 150 150 238 238 238 235 166 Overloaded Moves 16 | . . . . . 16 . . . . . . . . . . . . . . . . . . . . . . . . . . . Propulsion Burnouts . | . . . . . . . . . . . . . . . . . . . . . . . . . . . . . . . . . Robots Hopped . | . . . . . . . . . . . . . . . . . . . . . . . . . . . . . . . . . Cave-ins Triggered 2 | . . . . . . . . . . . . . . . . . . . . . . . . . . . . . . 1 1 . Teleports 3 | . . . . . . . . . . . . . . . . . . . . . . . . . . . . 1 1 1 . . Microwarps 20 | . . . . . . . . . . . . . . . . . . . . . . . . . . . . . . . 14 6 Time Travels 1 | . . . . . . . . . . . . . . . . . . . . . . . . . . . . . . 1 . . Exploration Rate (%) 53 | 5 81 86 71 38 64 80 24 69 9 68 9 93 7 86 57 92 12 68 37 95 11 96 14 61 89 23 81 94 29 59 69 4 Regions Visited 32 Branch Regions 12 Pre-discovered Areas 3 | . 1 1 . . 1 . . . . . . . . . . . . . . . . . . . . . . . . . . . Known Exits Taken 14 | . . . . . 1 . 1 . 1 . 1 . 1 1 . . 1 . 1 . 1 . 1 . . 1 . 1 1 . 1 . Unknown Exits Taken 10 | 1 1 1 1 1 . . . . . . . . . . 1 1 . . . . . . . 1 1 . . . . 1 . . Scrap Searched 2 | . . 1 . 1 . . . . . . . . . . . . . . . . . . . . . . . . . . . . Spaces Dug 394 | . 3 . . 29 9 18 6 3 3 12 1 11 5 . . . . 8 18 7 . 3 2 9 . 12 111 15 27 10 55 17 Terrain Destroyed 1424 | . 24 . . 56 34 123 10 8 15 22 2 50 7 39 8 16 . 63 52 67 4 37 3 147 . 16 156 62 84 54 244 21 Melee 58 | . . . . . . 4 . 3 3 12 1 11 5 . . . . 7 10 1 . . . . . . . . . . 1 . Projectile 442 | . 4 . . 3 12 . 10 5 12 10 1 13 2 . 7 16 . 11 24 2 4 13 3 32 . 16 6 36 84 29 66 21 AOE 923 | . 20 . . 53 22 119 . . . . . 26 . 39 . . . 45 18 64 . 24 . 115 . . 150 26 . 25 177 . Terrain Rammed . | . . . . . . . . . . . . . . . . . . . . . . . . . . . . . . . . . Walls Destroyed . | . . . . . . . . . . . . . . . . . . . . . . . . . . . . . . . . . Machines Disabled . | . . . . . . . . . . . . . . . . . . . . . . . . . . . . . . . . . Actions | -11 -10 -10 -10 -9 -8 -8 -8 -8 -7 -7 -7 -7 -6 -6 -6 -6 -6 -6 -5 -5 -4 -4 -4 -4 -4 -3 -3 -3 -2 -2 -2 -1 --------- Run | Yrd Mat Min Exi Min Mat Gar Mat Gar Fac Gar Fac Gar Fac Ext Cet Arc Hub Gar Fac Gar Fac Gar Fac Arm Lab Res Gar Qua Res Tes Sec Acc Total 27058 | 98 1199 639 314 255 1102 1093 243 872 483 1116 320 1106 220 1792 289 363 123 1113 2027 1324 595 1281 364 876 710 627 963 2214 1042 761 1431 103 Wait 4919 | . 489 25 2 39 246 79 33 229 54 85 50 69 15 598 51 62 36 126 343 189 137 250 26 248 373 56 147 420 136 61 244 1 Move 17848 | 69 614 595 294 179 736 793 173 492 363 774 220 761 179 966 177 250 69 747 1471 912 396 867 260 452 296 463 646 1446 672 536 906 74 Hop . | . . . . . . . . . . . . . . . . . . . . . . . . . . . . . . . . . Pick Up 353 | . 11 4 6 4 14 19 2 17 3 21 6 31 2 9 9 2 . 19 10 30 2 15 3 11 5 7 15 39 15 10 12 . Fast Attach 237 | 1 4 . . 1 18 10 2 11 5 15 . 14 . 13 4 5 . 15 3 3 10 5 . 11 5 3 1 31 8 22 16 1 Attach 208 | . 3 . . 1 6 13 2 10 7 15 2 11 4 13 2 3 . 4 7 14 5 3 8 16 4 2 10 16 10 10 5 2 Detach 92 | . . . 1 1 5 6 . 2 5 11 . 2 . 5 . 4 . 2 1 6 3 1 1 10 5 2 1 5 3 8 2 . Swap 474 | . 7 1 4 4 17 20 7 15 7 26 7 31 6 30 8 2 8 24 55 32 8 19 10 12 1 7 16 34 16 15 25 . Drop 454 | . 7 . 3 4 27 21 1 8 5 31 4 42 2 24 14 6 . 35 7 23 8 19 5 10 9 8 11 62 17 25 16 . Fire 2222 | 28 64 14 . 18 29 113 20 80 21 107 30 116 7 98 24 29 10 117 114 110 25 95 51 99 . 78 116 156 165 71 192 25 Melee 122 | . . . 4 . 4 9 3 6 10 16 1 15 5 1 . . . 8 10 5 . 7 . . 12 . . 4 . . 2 . Ram . | . . . . . . . . . . . . . . . . . . . . . . . . . . . . . . . . . Kick 4 | . . . . 4 . . . . . . . . . . . . . . . . . . . . . . . . . . . . Crush 27 | . . . . . . . . . 3 . . . . 1 . . . . 6 . 1 . . 7 . 1 . 1 . . 7 . Escape Stasis 49 | . . . . . . 10 . 2 . 15 . 14 . 1 . . . . . . . . . . . . . . . 3 4 . Rewire 49 | . . . . . . . . . . . . . . 33 . . . 16 . . . . . . . . . . . . . . Trap . | . . . . . . . . . . . . . . . . . . . . . . . . . . . . . . . . . Miscellaneous . | . . . . . . . . . . . . . . . . . . . . . . . . . . . . . . . . . Route ------- -11/Scrapyard -10/Materials (discovered 5 exits: [*Mat x3] / [*Min] / [*Sub]) -10/Mines (discovered 3 exits: [*Mat] / *Exi / [*Sub]) -10/Exiles -9/Mines -8/Materials (discovered 6 exits: *Fac x3 / *Sto x2 / Gar) -8/Garrison (discovered 3 exits: *Mat x3) -8/Materials (discovered 3 exits: Fac x2 / Gar) -8/Garrison (discovered 3 exits: *Fac x3) -7/Factory -7/Garrison (discovered 2 exits: *Fac x2) -7/Factory (discovered 3 exits: Low x2 / Gar) -7/Garrison (discovered 3 exits: *Fac x3) -6/Factory (discovered 2 exits: *Ext x2) -6/Extension (discovered 2 exits: *Fac / *Cet) -6/Cetus (discovered 2 exits: *Fac / *Arc) -6/Archives (discovered 3 exits: *Fac / *Hub x2) -6/Hub_04(d) (discovered 2 exits: Fac / Gar) -6/Garrison (discovered 3 exits: *Fac x3) -5/Factory (discovered 4 exits: *Fac x2 / [*Upp] / Gar) -5/Garrison (discovered 3 exits: *Fac x3) -4/Factory (discovered 2 exits: *Upp / Gar) -4/Garrison (discovered 3 exits: *Fac x3) -4/Factory (discovered 4 exits: *Res / Upp x2 / *Arm) -4/Armory (discovered 2 exits: *Res / *Lab) -4/Lab -3/Research -3/Garrison (discovered 3 exits: *Qua x3) -3/Quarantine -2/Research (discovered 2 exits: *Tes x2) -2/Testing (discovered 2 exits: Acc / *Sec) -2/Section 7 -1/Access To Epsilon Eridani History --------- Turn | Location | Event 26 | -11/Scrapyard | Discovered new exit (range 3) 170 | -11/Scrapyard | Entered Materials 245 | -10/Materials | Discovered new exit (range 12) 309 | -10/Materials | Build established: Mutant 430 | -10/Materials | Discovered new exit (range 16) 891 | -10/Materials | Discovered new exit (range 16) 1382 | -10/Materials | Repaired Lgt. Treads 1409 | -10/Materials | Repaired Lgt. Treads 1437 | -10/Materials | Repaired Lgt. Treads 1457 | -10/Materials | Discovered new exit (range 14) 1495 | -10/Materials | Discovered new exit (range 13) 1633 | -10/Materials | Learned location of 1 exit from Storage 1656 | -10/Materials | Learned location of 2 exits from Subcaves 1691 | -10/Materials | Learned location of 3 exits from Materials 1725 | -10/Materials | Learned 4 Subcaves zone layouts 1942 | -10/Materials | Entered Mines 1942 | -10/Mines | Accompanied by 1 ally 2010 | -10/Mines | Met a Derelict bent on vengeance 2030 | -10/Mines | Learned Materials emergency access door positions 2090 | -10/Mines | Learned location of Storage (-8) 2353 | -10/Mines | Found a damaged Exp. Sensor Array with a note attached 2356 | -10/Mines | Found Prototype Device 2593 | -10/Mines | Discovered new exit (range 12) 2643 | -10/Mines | Discovered new exit (range 12) 2746 | -10/Mines | Deemed a non-threat by the Exiles lab entrance 2746 | -10/Mines | Discovered new exit (range 5) 2967 | -10/Mines | Entered Exiles 2967 | -10/Exiles | Accompanied by 1 ally 3004 | -10/Exiles | Met 8R-AWN 3039 | -10/Exiles | Met EX-HEX 3083 | -10/Exiles | Met EX-BIN 3104 | -10/Exiles | Aligned with FarCom system 3106 | -10/Exiles | Given EX-Vault access code 3142 | -10/Exiles | Opened EX-Vault 3150 | -10/Exiles | Found YOLO Cannon 3160 | -10/Exiles | Found Potential Leg 3163 | -10/Exiles | Found Potential Leg 3169 | -10/Exiles | Found Chronowheel 3189 | -10/Exiles | Warned to stay clear of 0b10 Research branches 3212 | -10/Exiles | Met EX-DEC 3326 | -10/Exiles | Discovered new exit (range 10) 3336 | -10/Exiles | Stole three prototypes: Potential Leg, Chronowheel, YOLO Cannon 3336 | -10/Exiles | Entered Mines 3336 | -9/Mines | Accompanied by 1 ally 3337 | -9/Mines | Met a Derelict testing a Signal Generator 3340 | -9/Mines | Found Signal Generator 3408 | -9/Mines | Received a Rocket Launcher from a helpful Derelict 3427 | -9/Mines | Learned Materials emergency access door positions 3473 | -9/Mines | Assembled infested the area 3478 | -9/Mines | Assisted by a Guerilla fighting off Assembled 3571 | -9/Mines | Discovered new exit (range 5) 3602 | -9/Mines | Entered Materials 3602 | -8/Materials | Evolved 4 slots: Propulsion x1, Utility x2, Weapon x1 3603 | -8/Materials | Identified exit to Storage 3603 | -8/Materials | Identified exit to Factory 4259 | -8/Materials | Build established: Skirmisher 4390 | -8/Materials | Discovered exit to Factory (range 4) 4890 | -8/Materials | Build established: Gladiator 4906 | -8/Materials | Discovered exit to Factory (range 16) 4936 | -8/Materials | Learned Factory stockpile data 5022 | -8/Materials | Learned Factory trap positions 5050 | -8/Materials | Learned Storage emergency access door positions 5077 | -8/Materials | Learned location of 1 exit from Extension 5093 | -8/Materials | Learned Storage garrison access intel 5290 | -8/Materials | Identified exit to Garrison 5290 | -8/Materials | Entered Garrison 5354 | -8/Garrison | Triggered checkpoint 5676 | -8/Garrison | Garrison Relay disabled 5727 | -8/Garrison | Garrison Relay disabled 5798 | -8/Garrison | Triggered checkpoint 5861 | -8/Garrison | Spotted B-75 Beast 5861 | -8/Garrison | Spotted B-75 Beast 5879 | -8/Garrison | Destroyed B-75 Beast 5883 | -8/Garrison | Destroyed B-75 Beast 6228 | -8/Garrison | Triggered checkpoint 6273 | -8/Garrison | Build established: Scavenger-Skirmisher 6311 | -8/Garrison | Discovered new exit (range 10) 6400 | -8/Garrison | Triggered checkpoint 6458 | -8/Garrison | Garrison Relay disabled 6686 | -8/Garrison | Triggered checkpoint 6688 | -8/Garrison | Core integrity fell below 50% 6736 | -8/Garrison | Lost 3 parts (2n1u) 6860 | -8/Garrison | Discovered new exit (range 10) 6935 | -8/Garrison | Garrison Relay disabled 6944 | -8/Garrison | Triggered checkpoint 7032 | -8/Garrison | Garrison Relay disabled 7404 | -8/Garrison | Garrison Relay disabled 7406 | -8/Garrison | Triggered checkpoint 7480 | -8/Garrison | Discovered new exit (range 10) 7834 | -8/Garrison | Build established: Scavenger-Mutant 7911 | -8/Garrison | Installed Relay Interface Framework 7958 | -8/Garrison | Entered Materials 8251 | -8/Materials | Lost 3 parts (1n2w) 8268 | -8/Materials | Build established: Bothacker-Skirmisher 8488 | -8/Materials | Identified exit to Garrison 8488 | -8/Materials | Entered Garrison 8505 | -8/Garrison | Discovered exit to Factory (range 37) 8505 | -8/Garrison | Discovered exit to Factory (range 73) 8505 | -8/Garrison | Discovered exit to Factory (range 57) 8561 | -8/Garrison | Triggered checkpoint 8619 | -8/Garrison | Garrison Relay disabled 9114 | -8/Garrison | Expanded RIF knowledge: Zone Cloak 9147 | -8/Garrison | Triggered checkpoint 9188 | -8/Garrison | Garrison Relay disabled 9223 | -8/Garrison | Learned Factory security intel 9650 | -8/Garrison | Triggered checkpoint 9652 | -8/Garrison | Triggered checkpoint 9715 | -8/Garrison | Core integrity fell below 20% 9719 | -8/Garrison | Lost 4 parts (3n1w) 9926 | -8/Garrison | Garrison Relay disabled 9951 | -8/Garrison | Build established: Bothacker-Mutant 10181 | -8/Garrison | Lost 3 allies 10521 | -8/Garrison | Entered Factory 10521 | -7/Factory | Evolved 2 slots: Propulsion x1, Utility x1 10522 | -7/Factory | Loaded intel: 84 trap records 10523 | -7/Factory | FarCom data flow suspended 10821 | -7/Factory | Build established: Bothacker-Gunner 11260 | -7/Factory | Build established: Bothacker-Mutant 11759 | -7/Factory | Identified exit to Garrison 11807 | -7/Factory | Cargo convoy interrupted 11821 | -7/Factory | Entered Garrison 11838 | -7/Garrison | Triggered checkpoint 11921 | -7/Garrison | Garrison Relay disabled 12007 | -7/Garrison | Triggered checkpoint 12150 | -7/Garrison | Triggered checkpoint 12249 | -7/Garrison | Triggered checkpoint 12299 | -7/Garrison | Lost 3 parts (3n) 12440 | -7/Garrison | Build established: Bothacker-Gunner 12802 | -7/Garrison | Learned Factory security intel 13457 | -7/Garrison | Build established: Bothacker-Tank 13577 | -7/Garrison | Triggered checkpoint 13623 | -7/Garrison | Found Unknown Protection 13623 | -7/Garrison | Identified Hvy. Reactive Plating 13629 | -7/Garrison | Found Hvy. Reactive Plating 13787 | -7/Garrison | Triggered checkpoint 14090 | -7/Garrison | Discovered new exit (range 11) 14310 | -7/Garrison | Triggered checkpoint 14390 | -7/Garrison | Build established: Bothacker-Mutant 14439 | -7/Garrison | Discovered new exit (range 9) 14672 | -7/Garrison | Expanded RIF knowledge: Robot Detection 14726 | -7/Garrison | Lost 4 allies 14775 | -7/Garrison | Triggered checkpoint 14842 | -7/Garrison | Entered Factory 15050 | -7/Factory | Identified exit to Lower Caves 15110 | -7/Factory | Build established: Bothacker-Gunner 15255 | -7/Factory | Fabricated Humpback? 15450 | -7/Factory | Garrison activated, responded to threat 15497 | -7/Factory | Identified exit to Garrison 15539 | -7/Factory | Entered Garrison 15539 | -7/Garrison | Accompanied by 2 allies 15565 | -7/Garrison | Triggered checkpoint 15684 | -7/Garrison | Build established: Hauler-Gunner 15801 | -7/Garrison | Core integrity fell below 50% 15803 | -7/Garrison | Triggered checkpoint 15803 | -7/Garrison | Triggered checkpoint 15864 | -7/Garrison | Lost 5 allies 15987 | -7/Garrison | Discovered new exit (range 8) 16067 | -7/Garrison | Triggered checkpoint 16110 | -7/Garrison | Garrison Relay disabled 16135 | -7/Garrison | Identified Exp. Sensor Array 16513 | -7/Garrison | Triggered checkpoint 16615 | -7/Garrison | Discovered new exit (range 13) 16637 | -7/Garrison | Triggered checkpoint 16690 | -7/Garrison | Build established: Hauler-Mutant 16809 | -7/Garrison | Garrison Relay disabled 16953 | -7/Garrison | Triggered checkpoint 17118 | -7/Garrison | Build established: Bothacker-Gunner 17216 | -7/Garrison | Discovered new exit (range 11) 17259 | -7/Garrison | Expanded RIF knowledge: Command Fork 17337 | -7/Garrison | Triggered checkpoint 17352 | -7/Garrison | Garrison Relay disabled 17399 | -7/Garrison | Garrison Relay disabled 17593 | -7/Garrison | Triggered checkpoint 17666 | -7/Garrison | Build established: Botlord-Gunner 17673 | -7/Garrison | Garrison Relay disabled 17959 | -7/Garrison | Entered Factory 17959 | -6/Factory | Evolved 2 slots: Propulsion x1, Utility x1 17960 | -6/Factory | Identified exit to Extension 18309 | -6/Factory | First assault squad dispatched 18453 | -6/Factory | Entered Extension 18454 | -6/Extension | Identified exit to Cetus 18951 | -6/Extension | Rescued a captive Derelict 19686 | -6/Extension | Spotted B-75 Beast 19707 | -6/Extension | Destroyed B-75 Beast 19728 | -6/Extension | Disrupted transfer network 19796 | -6/Extension | Spotted B-75 Beast 19813 | -6/Extension | Destroyed B-75 Beast 20486 | -6/Extension | Build established: Botlord-Tank 20975 | -6/Extension | Lost 4 allies 21041 | -6/Extension | Rescued A7 21253 | -6/Extension | First assault squad dispatched 21344 | -6/Extension | Rescued a captive Derelict 21345 | -6/Extension | Rescued a captive Derelict 21364 | -6/Extension | Energy Cycler disabled 21364 | -6/Extension | Rescued a captive Derelict 21365 | -6/Extension | Rescued a captive Derelict 21367 | -6/Extension | Rescued a captive Derelict 21368 | -6/Extension | Rescued a captive Derelict 21370 | -6/Extension | Rescued a captive Derelict 21371 | -6/Extension | Rescued a captive Derelict 21395 | -6/Extension | Lost 7 allies 21778 | -6/Extension | Discovered new exit (range 11) 21881 | -6/Extension | Entered Cetus 21881 | -6/Cetus | Accompanied by 13 allies (A7) 21886 | -6/Cetus | Acquired a Cetus Manufacturing Module code from A7 21991 | -6/Cetus | Spotted Cetus Guard 21991 | -6/Cetus | Spotted Cetus Guard 21993 | -6/Cetus | Spotted Cetus Guard 21995 | -6/Cetus | Spotted Cetus Guard 22008 | -6/Cetus | Allies destroyed Cetus Guard 22016 | -6/Cetus | Allies destroyed Cetus Guard 22027 | -6/Cetus | Destroyed Cetus Guard 22027 | -6/Cetus | Allies destroyed Cetus Guard 22041 | -6/Cetus | Extracted ID and sensor layout for unrecognized location from A7's data core 22048 | -6/Cetus | Lost 7 allies 22173 | -6/Cetus | Started Cetus Manufacturing Module 22198 | -6/Cetus | Manufactured an Enhanced Grunt 22202 | -6/Cetus | Discovered new exit (range 15) 22223 | -6/Cetus | Manufactured an Enhanced Grunt 22248 | -6/Cetus | Manufactured an Enhanced Grunt 22273 | -6/Cetus | Manufactured an Enhanced Grunt 22280 | -6/Cetus | Spotted Cetus Guard 22280 | -6/Cetus | Spotted Cetus Guard 22288 | -6/Cetus | Spotted Cetus Guard 22288 | -6/Cetus | Destroyed Cetus Guard 22298 | -6/Cetus | Manufactured an Enhanced Grunt 22298 | -6/Cetus | Spotted Cetus Guard 22304 | -6/Cetus | Destroyed Cetus Guard 22305 | -6/Cetus | Allies destroyed Cetus Guard 22311 | -6/Cetus | Destroyed Cetus Guard 22338 | -6/Cetus | Lost 3 allies 22345 | -6/Cetus | Discovered new exit (range 16) 22359 | -6/Cetus | Met Revision 17 22467 | -6/Cetus | Entered Archives 22467 | -6/Archives | Accompanied by 5 allies 22601 | -6/Archives | Discovered new exit (range 14) 22626 | -6/Archives | Discovered new exit (range 13) 22824 | -6/Archives | Discovered new exit (range 16) 22939 | -6/Archives | Unable to access archive contents 22977 | -6/Archives | Unable to access archive contents 23222 | -6/Archives | Entered Hub_04(d) 23222 | -6/Hub_04(d) | Accompanied by 5 allies 23276 | -6/Hub_04(d) | Network Hub disabled 23346 | -6/Hub_04(d) | Discovered new exit (range 30) 23416 | -6/Hub_04(d) | Garrison activated, responded to threat 23420 | -6/Hub_04(d) | Identified exit to Garrison 23420 | -6/Hub_04(d) | Entered Garrison 23434 | -6/Garrison | Triggered checkpoint 23495 | -6/Garrison | Discovered new exit (range 68) 23495 | -6/Garrison | Discovered new exit (range 60) 23495 | -6/Garrison | Discovered new exit (range 48) 23729 | -6/Garrison | Triggered checkpoint 23763 | -6/Garrison | Garrison Relay disabled 23788 | -6/Garrison | Build established: Bothacker-Tank 23964 | -6/Garrison | Triggered checkpoint 24009 | -6/Garrison | Spotted B-75 Beast 24044 | -6/Garrison | Destroyed B-75 Beast 24090 | -6/Garrison | Rewired B-90 Cyclops 24262 | -6/Garrison | Garrison Relay disabled 24372 | -6/Garrison | Rescued a captive Derelict 24429 | -6/Garrison | Expanded RIF knowledge: Alert ID Control 24584 | -6/Garrison | Build established: Botlord-Gunner 24623 | -6/Garrison | Garrison Relay disabled 24728 | -6/Garrison | Spotted B-75 Beast 24740 | -6/Garrison | Learned Factory security intel 24763 | -6/Garrison | Destroyed B-75 Beast 24862 | -6/Garrison | Triggered checkpoint 25151 | -6/Garrison | Garrison Relay disabled 25154 | -6/Garrison | Triggered checkpoint 25209 | -6/Garrison | Entered Factory 25209 | -5/Factory | Evolved 2 slots: Propulsion x1, Utility x1 25345 | -5/Factory | Repaired Centrium Heavy Treads 25454 | -5/Factory | Repaired Centrium Heavy Treads? 25706 | -5/Factory | Discovered new exit (range 5) 25748 | -5/Factory | Discovered new exit (range 15) 25748 | -5/Factory | Discovered new exit (range 40) 26154 | -5/Factory | Cargo convoy interrupted 27044 | -5/Factory | Lost 3 allies 27181 | -5/Factory | Build established: Botlord-Tank 27327 | -5/Factory | Fabricated Centrium Heavy Treads (x1) 27617 | -5/Factory | Identified exit to Garrison 27794 | -5/Factory | Spotted B-75 Beast 28381 | -5/Factory | Identified exit to Garrison 28381 | -5/Factory | Entered Garrison 28397 | -5/Garrison | Triggered checkpoint 28419 | -5/Garrison | Garrison Relay disabled 28763 | -5/Garrison | Spotted B-75 Beast 28774 | -5/Garrison | Destroyed B-75 Beast 28828 | -5/Garrison | Triggered checkpoint 28837 | -5/Garrison | Triggered checkpoint 28901 | -5/Garrison | Destroyed 9 combat bots 28901 | -5/Garrison | Lost 4 parts (2n1u1w) 28942 | -5/Garrison | Spotted B-75 Beast 28942 | -5/Garrison | Spotted B-75 Beast 28959 | -5/Garrison | Destroyed B-75 Beast 28963 | -5/Garrison | Destroyed B-75 Beast 29004 | -5/Garrison | Found Fusion Bomb Launcher 29066 | -5/Garrison | Build established: Botlord-Gunner 29079 | -5/Garrison | Discovered new exit (range 14) 29085 | -5/Garrison | Triggered checkpoint 29253 | -5/Garrison | Garrison Relay disabled 29311 | -5/Garrison | Triggered checkpoint 29363 | -5/Garrison | Expanded RIF knowledge: Structural Interface 29439 | -5/Garrison | Garrison Relay disabled 29575 | -5/Garrison | Triggered checkpoint 29692 | -5/Garrison | Triggered checkpoint 29803 | -5/Garrison | Discovered new exit (range 9) 30045 | -5/Garrison | Garrison Relay disabled 30230 | -5/Garrison | Garrison Relay disabled 30232 | -5/Garrison | Garrison Relay disabled 30244 | -5/Garrison | Garrison Relay disabled 30246 | -5/Garrison | Garrison Relay disabled 30281 | -5/Garrison | Discovered new exit (range 5) 30327 | -5/Garrison | Triggered checkpoint 30395 | -5/Garrison | Garrison Relay disabled 30477 | -5/Garrison | Entered Factory 30477 | -4/Factory | Accompanied by 2 allies 30477 | -4/Factory | Evolved 2 slots: Utility x2 30486 | -4/Factory | Build established: Botlord-Tank 30843 | -4/Factory | Discovered new exit (range 15) 31209 | -4/Factory | Fabricated Centrium Heavy Treads (x1) 31227 | -4/Factory | First assault squad dispatched 31274 | -4/Factory | Garrison activated, responded to threat 31330 | -4/Factory | Identified exit to Garrison 31339 | -4/Factory | Entered Garrison 31339 | -4/Garrison | Accompanied by 5 allies 31379 | -4/Garrison | Triggered checkpoint 31505 | -4/Garrison | Spotted B-86 Titan 31508 | -4/Garrison | Allies destroyed B-86 Titan 31509 | -4/Garrison | Triggered checkpoint 31514 | -4/Garrison | Triggered checkpoint 31564 | -4/Garrison | Lost 5 allies 31667 | -4/Garrison | Triggered checkpoint 31886 | -4/Garrison | Expanded RIF knowledge: Watcher Feeds 31910 | -4/Garrison | Garrison Relay disabled 32193 | -4/Garrison | Garrison Relay disabled 32245 | -4/Garrison | Triggered checkpoint 32282 | -4/Garrison | Discovered new exit (range 10) 32466 | -4/Garrison | Garrison Relay disabled 32499 | -4/Garrison | Triggered checkpoint 32502 | -4/Garrison | Discovered new exit (range 13) 32787 | -4/Garrison | Triggered checkpoint 32813 | -4/Garrison | Discovered new exit (range 14) 32973 | -4/Garrison | Found Quantum Capacitor 32977 | -4/Garrison | Found Quantum Capacitor 33029 | -4/Garrison | Triggered checkpoint 33182 | -4/Garrison | Build established: Botlord-Gunner 33280 | -4/Garrison | Entered Factory 33280 | -4/Factory | Accompanied by 2 allies 33288 | -4/Factory | Discovered new exit (range 5) 33313 | -4/Factory | Identified exit to Upper Caves 33313 | -4/Factory | Identified exit to Armory 33723 | -4/Factory | P-80 Master assimilated allied Assassin 7c 33725 | -4/Factory | P-80 Master assimilated allied Assassin 7b 33809 | -4/Factory | Entered Armory 33809 | -4/Armory | Accompanied by 2 allies 33823 | -4/Armory | Lost 8 allies 35096 | -4/Armory | Discovered new exit (range 13) 35160 | -4/Armory | Discovered new exit (range 3) 35167 | -4/Armory | Entered Lab 35171 | -4/Lab | Discovered new exit (range 8) 35187 | -4/Lab | Hidden lab's door opened automatically 35187 | -4/Lab | Sensor layout match revealed 35188 | -4/Lab | Gained access to the hidden lab's interior 35333 | -4/Lab | Build established: Hauler-Gunner 35436 | -4/Lab | Found Alien Artifact 35436 | -4/Lab | Identified Integrated Reactor 35436 | -4/Lab | Installed Integrated Reactor, increased core energy generation (+10) 35448 | -4/Lab | Found Alien Artifact 35459 | -4/Lab | Found Alien Artifact 35565 | -4/Lab | Found Prototype Protection 35565 | -4/Lab | Identified Hvy. Regenerative Plating 35570 | -4/Lab | Found Prototype Hackware 35570 | -4/Lab | Identified Quantum Router 35578 | -4/Lab | Found Prototype Energy Gun 35578 | -4/Lab | Identified Tachyon Dispersion Ray 35711 | -4/Lab | Build established: Hauler-Mutant 35913 | -4/Lab | Found Prototype Energy Cannon 35913 | -4/Lab | Identified Warp Cannon 35991 | -4/Lab | Found Alien Artifact 36022 | -4/Lab | Unable to decrypt terminal 36045 | -4/Lab | Entered Research 36045 | -3/Research | Evolved 2 slots: Utility x2 36245 | -3/Research | Revision forces began assault on 0b10 36296 | -3/Research | Met up with Revision 17++ 36391 | -3/Research | Build established: Hauler-Gunner 36411 | -3/Research | Spotted B-86 Titan 36427 | -3/Research | Destroyed B-86 Titan 36535 | -3/Research | Identified exit to Garrison 36692 | -3/Research | Found Fusion Bomb Launcher 36745 | -3/Research | Research terminal network offline 36778 | -3/Research | Identified Core Expander 36778 | -3/Research | Installed Core Expander, added new Weapon slot 36909 | -3/Research | Entered Garrison 36909 | -3/Garrison | Accompanied by 1 ally 36951 | -3/Garrison | Triggered checkpoint 36986 | -3/Garrison | Garrison Relay disabled 37016 | -3/Garrison | Discovered new exit (range 76) 37016 | -3/Garrison | Discovered new exit (range 91) 37016 | -3/Garrison | Discovered new exit (range 51) 37247 | -3/Garrison | Spotted B-86 Titan 37277 | -3/Garrison | Build established: Botlord-Gunner 37293 | -3/Garrison | Destroyed B-86 Titan 37460 | -3/Garrison | Garrison Relay disabled 37544 | -3/Garrison | Spotted Executioner 37544 | -3/Garrison | Spotted Executioner 37551 | -3/Garrison | Triggered checkpoint 37563 | -3/Garrison | Destroyed Executioner 37576 | -3/Garrison | Destroyed Executioner 37599 | -3/Garrison | Found Corrupted Prototype Device 37694 | -3/Garrison | Triggered checkpoint 37789 | -3/Garrison | Triggered checkpoint 37957 | -3/Garrison | Spotted B-86 Titan 37961 | -3/Garrison | Destroyed B-86 Titan 37986 | -3/Garrison | Destroyed 7 combat bots 38042 | -3/Garrison | Build established: Hauler-Gunner 38059 | -3/Garrison | Triggered checkpoint 38114 | -3/Garrison | Garrison Relay disabled 38211 | -3/Garrison | Expanded RIF knowledge: Zone Cloak 38232 | -3/Garrison | Entered Quarantine 38274 | -3/Quarantine | Found Alien Artifact 38422 | -3/Quarantine | Found Alien Artifact 38448 | -3/Quarantine | Met incapacitated Sigix Warrior 38448 | -3/Quarantine | Lockdown squad dispatched 38449 | -3/Quarantine | Acquired the access code to the Sigix quarantine chamber 38452 | -3/Quarantine | Unlocked Sigix quarantine chamber 38469 | -3/Quarantine | Found Sigix Containment Pod 38576 | -3/Quarantine | Found Alien Artifact 38802 | -3/Quarantine | Identified Phase Redirector 38899 | -3/Quarantine | Identified Adv. Kinecellerator 38900 | -3/Quarantine | System corruption reached 10% 38901 | -3/Quarantine | Found Hpw. Transdimensional Reconstructor 39044 | -3/Quarantine | Found Dimensional Node Initializer 39044 | -3/Quarantine | Initialized slip node 39053 | -3/Quarantine | Found Hpw. Transdimensional Reconstructor 39106 | -3/Quarantine | Build established: Botlord-Gunner 39146 | -3/Quarantine | Identified Core Reset Matrix 39231 | -3/Quarantine | Cryocooling Duct disabled 39232 | -3/Quarantine | First assault squad dispatched 39246 | -3/Quarantine | Ambient heat levels rising (+20) 39246 | -3/Quarantine | Non-combat units ordered to evacuate 39275 | -3/Quarantine | Found Alien Impact Weapon 39292 | -3/Quarantine | Warped through subspace to slip node 39301 | -3/Quarantine | Found Hpw. Transdimensional Reconstructor 39362 | -3/Quarantine | Discovered new exit (range 4) 39481 | -3/Quarantine | Cryocooling Duct disabled 39496 | -3/Quarantine | Ambient heat levels rising (+20) 39496 | -3/Quarantine | Combat units ordered to evacuate 39522 | -3/Quarantine | Identified exit to Research 39596 | -3/Quarantine | Quarantine Guard activated 39681 | -3/Quarantine | Spotted Quarantine Guard 39699 | -3/Quarantine | Destroyed Quarantine Guard 39771 | -3/Quarantine | Spotted Quarantine Guard 39871 | -3/Quarantine | Spotted Quarantine Guard 39888 | -3/Quarantine | Repaired Centrium Heavy Treads? 39903 | -3/Quarantine | Destroyed Quarantine Guard 39986 | -3/Quarantine | Spotted Quarantine Guard 39990 | -3/Quarantine | Identified Core Stripper 40002 | -3/Quarantine | Destroyed Quarantine Guard 40108 | -3/Quarantine | Destroyed Quarantine Guard 40342 | -3/Quarantine | Build established: Hauler-Gunner 40364 | -3/Quarantine | Spotted Quarantine Guard 40430 | -3/Quarantine | Destroyed Quarantine Guard 40538 | -3/Quarantine | Spotted Quarantine Guard 40542 | -3/Quarantine | Destroyed Quarantine Guard 40769 | -3/Quarantine | Found Prototype Hackware 40769 | -3/Quarantine | Identified Exp. Hacking Suite 40797 | -3/Quarantine | Spotted Quarantine Guard 40805 | -3/Quarantine | Destroyed Quarantine Guard 40878 | -3/Quarantine | Spotted Quarantine Guard 40922 | -3/Quarantine | Destroyed Quarantine Guard 40977 | -3/Quarantine | Spotted Quarantine Guard 40982 | -3/Quarantine | Destroyed Quarantine Guard 40990 | -3/Quarantine | Spotted Quarantine Guard 40991 | -3/Quarantine | Destroyed Quarantine Guard 41043 | -3/Quarantine | Spotted Quarantine Guard 41049 | -3/Quarantine | Destroyed Quarantine Guard 41165 | -3/Quarantine | Found Hpw. Transdimensional Reconstructor 41176 | -3/Quarantine | Found Dimensional Node Initializer 41286 | -3/Quarantine | Spotted Quarantine Guard 41290 | -3/Quarantine | Destroyed Quarantine Guard 41327 | -3/Quarantine | Found Core Reset Matrix 41345 | -3/Quarantine | Entered Research 41345 | -2/Research | Evolved 2 slots: Power x1, Utility x1 41431 | -2/Research | Repaired Biometal Heavy Treads 41845 | -2/Research | First assault squad dispatched 42433 | -2/Research | Spotted B-90 Cyclops 42460 | -2/Research | Destroyed B-90 Cyclops 42751 | -2/Research | Warped through subspace 43091 | -2/Research | Identified exit to Testing 43229 | -2/Research | Entered Testing 43363 | -2/Testing | Protovariant out of control (PY-OKSJ0AG1N6) 43412 | -2/Testing | Scanned by Researcher 43447 | -2/Testing | Found Prototype Protection 43447 | -2/Testing | Identified SHELL Armor 43644 | -2/Testing | Found Prototype Processor 43644 | -2/Testing | Identified Exp. Target Analyzer 43901 | -2/Testing | Spotted Striker 43901 | -2/Testing | Crushed by falling debris 43902 | -2/Testing | System corruption reached 10% 43902 | -2/Testing | Spotted Striker 43904 | -2/Testing | Spotted Alpha 7 43905 | -2/Testing | Warped through subspace 44030 | -2/Testing | Found Prototype Hackware 44030 | -2/Testing | Identified Ghost Barrier 44111 | -2/Testing | Fabricated Humpback (x1) 44209 | -2/Testing | Identified exit to Access 44436 | -2/Testing | Spotted Fortress 44452 | -2/Testing | Destroyed Fortress 44479 | -2/Testing | Found Prototype Reactor 44479 | -2/Testing | Identified Vortex Chain Reactor 44486 | -2/Testing | Found Prototype Device 44486 | -2/Testing | Identified Exp. Force Field 44497 | -2/Testing | Found Vortex Chain Reactor 44656 | -2/Testing | Discovered new exit (range 6) 44667 | -2/Testing | Activated Chronowheel 44667 | -2/Testing | Spacetime reconverged on an earlier point 44668 | -2/Testing | Entered Section 7 44778 | -2/Section 7 | Repaired Biometal Heavy Treads 44843 | -2/Section 7 | Found Alien Artifact 44926 | -2/Section 7 | Crushed by falling debris 44946 | -2/Section 7 | Found Integrated Reactor 44946 | -2/Section 7 | Installed Integrated Reactor, increased core energy generation (+10) 45127 | -2/Section 7 | Found Alien Artifact 45127 | -2/Section 7 | Identified Microwarp Drive (x2) 45274 | -2/Section 7 | Build established: Hauler-Tank 45907 | -2/Section 7 | Found Prototype Device 45907 | -2/Section 7 | Identified Thermal Barrier 46168 | -2/Section 7 | First assault squad dispatched 46172 | -2/Section 7 | Spotted Alpha 7 46180 | -2/Section 7 | Spotted Alpha 7 46183 | -2/Section 7 | Destroyed Alpha 7 46204 | -2/Section 7 | Destroyed Alpha 7 46298 | -2/Section 7 | Found Prototype Energy Gun 46405 | -2/Section 7 | Spotted B-99 Colossus 46434 | -2/Section 7 | Scanned by Researcher 46456 | -2/Section 7 | Destroyed B-99 Colossus 46495 | -2/Section 7 | Found Prototype Ballistic Gun 46533 | -2/Section 7 | Destroyed 12 combat bots 46637 | -2/Section 7 | Found Integrated Reactor 46637 | -2/Section 7 | Installed Integrated Reactor, increased core energy generation (+10) 46641 | -2/Section 7 | Found Integrated Reactor 46641 | -2/Section 7 | Installed Integrated Reactor, increased core energy generation (+10) 46654 | -2/Section 7 | Intercept squad dispatched 46669 | -2/Section 7 | Spotted Tracker 46670 | -2/Section 7 | Spotted Tracker 46693 | -2/Section 7 | Destroyed Tracker 46697 | -2/Section 7 | Destroyed Tracker 46709 | -2/Section 7 | Spotted Combat Programmer 46710 | -2/Section 7 | Spotted Combat Programmer 46712 | -2/Section 7 | System corruption reached 30% 46713 | -2/Section 7 | Destroyed Combat Programmer 46728 | -2/Section 7 | Destroyed Combat Programmer 46774 | -2/Section 7 | Found Alien Artifact 46774 | -2/Section 7 | Identified LRC Matter Compressor 46774 | -2/Section 7 | Installed LRC Matter Compressor, increased matter storage capacity (+125) 46789 | -2/Section 7 | Found Alien Artifact 46789 | -2/Section 7 | Identified LRC Energy Well 46789 | -2/Section 7 | Installed LRC Energy Well, increased energy storage capacity (+250) 47032 | -2/Section 7 | Destroyed 12 combat bots 47115 | -2/Section 7 | Spotted Executioner 47115 | -2/Section 7 | Spotted Executioner 47134 | -2/Section 7 | Core integrity fell below 50% 47134 | -2/Section 7 | Spotted Striker 47134 | -2/Section 7 | Spotted Striker 47208 | -2/Section 7 | Destroyed Executioner 47254 | -2/Section 7 | Destroyed Executioner 47521 | -2/Section 7 | Destroyed 8 combat bots 47550 | -2/Section 7 | High security lockdown imminent 47558 | -2/Section 7 | Core integrity fell below 20% 47560 | -2/Section 7 | Discovered exit to Access (range 12) 47583 | -2/Section 7 | Intercept squad dispatched 47584 | -2/Section 7 | Found Alien Artifact 47584 | -2/Section 7 | Identified Integrated Dissipator 47584 | -2/Section 7 | Installed Integrated Dissipator, increased core heat dissipation (+20) 47584 | -2/Section 7 | Spotted Tracker 47584 | -2/Section 7 | Spotted Tracker 47584 | -2/Section 7 | Spotted Tracker 47588 | -2/Section 7 | Spotted Combat Programmer 47589 | -2/Section 7 | Spotted Combat Programmer 47590 | -2/Section 7 | Spotted Combat Programmer 47604 | -2/Section 7 | Entered Access 47604 | -1/Access | Evolved 2 slots: Utility x2 47635 | -1/Access | Lost 15 parts (2n4u8w) 47775 | -1/Access | Discovered new exit (range 3) 47778 | *** | Escaped! Last Messages --------------- 47652_ Microwarped (distance 5). 47665_ RIF reveals location of hidden door. 47735_ U-05 Engineer builds a Wall. 47736_ Destroyed Unknown Special Weapon. 47736_ U-05 Engineer destroyed. 47742_ Acquired Terrain Scanner. 47750_ ALERT: Construction progress impeded, dispatching reinforcements to local area. 47763_ Microwarped (distance 7). 47767_ Microwarped (distance 3). 47769_ Microwarped (distance 8). 47770_ Connecting with Terminal... >>Open(Door) Sealed Barrier opened. 47770_ Microwarped (distance 8). 47773_ System corrupted: Hdn. Centrium Heavy Treads fused. 47773_ Main Access Shell breached. 47775_ EXIT=FOUND [Achievement: Torch] [Achievement: Winner's Signature] Map ----- +----------------------------------------------------+ | ?????????????????????????????????????????????????? | | ?????????????????????????????????????????????????? | | ?????????????????????????????????????????????????? | | ?????????????????????????????????????????????????? | | ?????????????????????????????????????????????????? | | ???????????????ss????????????????????????????????? | | ????????????????ss???????????????????????????????? | | ????????????????s????????????????????????????????? | | ?????????????????????????????????????????????????? | | ?????????????????????????????????????????????????? | | ?????????????????????????????????????????????????? | | ?????????????????????????????????????????????????? | | ?????????????????????????????????????????????????? | | ?????????????????????????????????????????????????? | | ?????????????????????????????????????????????????? | | ?????????????????????????????????????????????????? | | ??????????#??????? ??????????????????????????????? | | ??????????# ?????????????????????????????????????? | | ??????????# ????????????????????????????????????? | | ??????????# ####### ####????????????????????????? | | ??????????# """T""" ??????????????????????? | | ??????????# """ """ ?????????BB????????????? | | ??????????# """"""??????BB????????????? | | ??????????# " "????? ??????????????? | | ??????????# " "" "????????????????????? | | ??????????# " @" "??"?????????????????? | | ??????????# " "????????????????????? | | ??????????# """ "" "????BB????????????? | | ??????????# ""???BB????????????? | | ??????????# "??????????????????? | | ??????????# #####"# ##########??????????????????? | | ??????????# ????# """ ##?????????????????????? | | ??????????# ????### "#############?????????? | | ??????????# ???????##### "= #?????????? | | ??????????# ???????????####% #?????????? | | ??????????????????????????#""""" "#????????? | | ????????????????#?????????#""""" ##????????? | | ????????????????????#?????#""""" #?????????? | | ??????????? ??????????????#""""" #?????????? | | ??????????????????????????#""""" = #?????????? | | ??????????????????????????#""""" #?????????? | | ??????????????????????????# #?????????? | | ??????????????????????????# ####??????? | | ?????????????????????#????# + #??????? | | ??????????????????????????# ## #??????? | | ??????????????????????????#+#####+##+#### #??????? | | ?????????????????????????????+ #??# #??????? | | ?????????????????????????????# ####+#### ### | | ?????????????????????????????# # | | ?????????????????????????????# + | +----------------------------------------------------+ Best States ------------- Heat Dissipation 165 Coolant Potential 120 Energy Generation 95 Energy Capacity 950 Matter Stores 425 Matter Capacity 700 Sight Range 23 Terrain Scan Range 14 Terrain Scan Density 10 Jamming Range 16 Cloak Strength 3 Base Temperature (-) 200 Corruption Block 12 Armor Coverage 2250 Resistance: KI 40 Resistance: TH 50 Resistance: EM 25 Weapon Shielding 90 Point Defense Rating 240 Phase Shifting 10 Evasion (%) 57 Targeting Accuracy 8 Melee Accuracy 6 Target Analysis 10 Core Analysis 6 Recoil Reduction 9 Particle Charging 25 Kinecelleration 50 Offensive Hacking 24 Defensive Hacking 25 Relay Coupler Types 7 Relay Coupler Value 168 Authchip Count 4 Item Schematics ----------------- Humpback | -7/Factory | Scanalyzed Lrn. Missile Launcher | -6/Factory | Scanalyzed Centrium Heavy Treads | -5/Factory | Scanalyzed Hvy. Hardcell Cannon | -2/Testing | Archive Exp. Biometal Medium Treads | -2/Testing | Archive Enh. Gamma Bomb Array | -2/Testing | Archive Adv. Energy Well | -2/Section 7 | Archive Cld. Impulse Thruster | -2/Section 7 | Archive Robot Schematics ------------------ S-43 Plague | -2/Testing | Archive Y-72 Warden | -2/Testing | Archive Fabricated ------------ Humpback | x1 | -7/Factory Centrium Heavy Treads | x1 | -5/Factory | Authchip Centrium Heavy Treads | x1 | -4/Factory | Authchip Humpback | x1 | -2/Testing Alien Tech Used ----------------- Integrated Reactor Core Expander Phase Redirector Dimensional Node Initializer High-powered Transdimensional Reconstructor Core Stripper Microwarp Drive LRC Matter Compressor LRC Energy Well Integrated Dissipator Achievements -------------- Torch Winner's Signature Challenges ------------ None Game ------ Seed IonicGravmagTerrabomb Manual? 0 Play Time 08:50:35 Cumulative 315.3 hours Start 2024.09.25 @ 17:13:19 End 2024.09.30 @ 17:55:39 Sessions 20 Manual Loads 0 Difficulty Rogue Special Mode None Game No. 149 Rogue 149 Adventurer 0 Explorer 0 Win Type 0 Total 9 Types 5/1/3/0/0/0/0/0/0 Lore% 79 Gallery% 87 Achievement% 73 Wizard Run 0 Options --------- Layout 0 ASCII 0 Keyboard 0 Movement Mouse Keybinds 0 Fullscreen 2 Font 12/Smallcaps Map View 83x54 Zoom Use 0% Tactical HUD 1 Map Filters NONE Filters NONE Steam 1 RUN: de32b0bf-88a6-42c7-b9b6-3f332e757e49